Workbook

Sheet DAMAN
A1: GANPATI PETROCHEMICALS
A2: Consigment Stockist of : HALDIA PETROCHEMICALS LTD.
A3: 152,Sanjay Bldg. No. 6,Mittal Ind.Estate,Andheri Kurla Road,Marol,Andheri(East),MUMBAI-400 059.
A4: Tel. 28509801 / 28517451 / 32460637 Telefax. 28509802 / E- MAIL ganpetro@vsnl.com
A5: HDPE / PP / LLDPE PRICES EX-HALDIA PETROCHEMICALS LTD. PLANT FOR DAMAN
A6: Daman W.H. Add :- House no. DGGP / 10-B, Survey No. 747 & 748, Village Kalaria, Nani Daman, Daman - 396210, Tel:-0260-2240086, 9377319643
A7: HDPE, LLDPE & PP PRICE W.E.F. DT. 09.05.2013
A8: GRADE | B8: BASIC | C8: LESS. | D8: LESS. | E8: ADD E.D | F8: ADD CST | G8: ADD | H8: ADD S.T. | I8: CASH AMT
A9: HDPE | C9: C.D. | D9: LOC.SUB | E9: 0.1236 | F9: 0.02 | G9: TRANSP | H9: 0.0309 | I9: PMT
A10: IM 6007L / M 5005L | B10: 88050 | C10: 1000 | D10: 5800 | E10: =+(B10-C10-D10)*0.1236 -> 10042.5 | F10: =+(B10-C10-D10+E10)*0.02 -> 1825.85 | G10: 3027 | H10: =+G10*0.0309 -> 93.5343 | I10: =+B10-C10-D10+E10+F10+G10+H10 -> 96238.8843
A11: IM( 7MFI) M 6007LU | B11: 89550 | C11: 1000 | D11: 5800 | E11: =+(B11-C11-D11)*0.1236 -> 10227.9 | F11: =+(B11-C11-D11+E11)*0.02 -> 1859.558 | G11: 3027 | H11: =+G11*0.0309 -> 93.5343 | I11: =+B11-C11-D11+E11+F11+G11+H11 -> 97957.9923
A12: IM( 4.5 MFI ) M 5002L | B12: 87550 | C12: 1000 | D12: 5800 | E12: 9980.7 | F12: 1814.614 | G12: 3027 | H12: 93.5343 | I12: 95665.8483
A13: HD BM B 6401 | B13: 87000 | C13: 1000 | D13: 5800 | E13: 9912.72 | F13: 1802.2544 | G13: 3027 | H13: 93.5343 | I13: 95035.5087
A14: HD BM E 5201 | B14: 88500 | C14: 1000 | D14: 5800 | E14: 10098.12 | F14: 1835.9624 | G14: 3027 | H14: 93.5343 | I14: 96754.6167
A15: HD BM E5201S | B15: 87500 | C15: 1000 | D15: 5800 | E15: 9974.52 | F15: 1813.4904 | G15: 3027 | H15: 93.5343 | I15: 95608.5447
A16: MBM B 5500 | B16: 90200 | C16: 1000 | D16: 6000 | E16: 10283.52 | F16: 1869.6704 | G16: 3027 | H16: 93.5343 | I16: 98473.7247
A17: HM FILM F 5600/5400 | B17: 88950 | C17: 1000 | D17: 6450 | E17: 10073.4 | F17: 1831.468 | G17: 3027 | H17: 93.5343 | I17: 96525.4023
A18: RAF/MFIL R5801 | B18: 89850 | C18: 1000 | D18: 5600 | E18: 10289.7 | F18: 1870.794 | G18: 3027 | H18: 93.5343 | I18: 98531.0283
A19: RAF/MFIL HD T9 | B19: 86550 | C19: 1000 | D19: 5600 | E19: 9881.82 | F19: 1796.6364 | G19: 3027 | H19: 93.5343 | I19: 94748.9907
A20: HD FILM HDT6 / F5001 | B20: 88850 | C20: 1000 | D20: 6700 | E20: 10030.14 | F20: 1823.6028 | G20: 3027 | H20: 93.5343 | I20: 96124.2771
A21: PIPE P5200UV | B21: 91750 | C21: 1000 | D21: 6550 | E21: 10407.12 | F21: 1892.1424 | G21: 3027 | H21: 93.5343 | I21: 99619.7967
A22: IM M 5018L/M 5025L/M5818 | B22: 86900 | C22: 1000 | D22: 6100 | E22: 9863.28 | F22: 1793.2656 | G22: 3027 | H22: 93.5343 | I22: 94577.0799
A23: RAF HD T10 / HD T10S | B23: 87450 | C23: 1000 | D23: 5600 | E23: 9993.06 | F23: 1816.8612 | G23: 3027 | H23: 93.5343 | I23: 95780.4555
A24: PIPE P 5300 | B24: 93200 | C24: 1000 | D24: 6600 | E24: 10580.16 | F24: 1923.6032 | G24: 3027 | H24: 93.5343 | I24: 101224.2975
A25: PIPE P5200(P.E-63) | B25: 90250 | C25: 1000 | D25: 6550 | E25: 10221.72 | F25: 1858.4344 | G25: 3027 | H25: 93.5343 | I25: 97900.6887
A26: HD T9C | B26: 82950 | C26: 0 | D26: 1850 | E26: 10023.96 | F26: 1822.4792 | G26: 3027 | H26: 93.5343 | I26: 96066.9735
A27: OG | B27: 81950 | C27: 0 | D27: 1850 | E27: =+(B27-C27-D27)*0.1236 -> 9900.36 | F27: =+(B27-C27-D27+E27)*0.02 -> 1800.0072 | G27: 3027 | H27: =+G27*0.0309 -> 93.5343 | I27: =+B27-C27-D27+E27+F27+G27+H27 -> 94920.9015
A28: PP | F28: 0
A29: FILM F 110 | B29: 90300 | C29: 1000 | D29: 5500 | E29: =+(B29-C29-D29)*0.1236 -> 10357.68 | F29: 1883.1536 | G29: 3027 | H29: =+G29*0.0309 -> 93.5343 | I29: 99161.3679
A30: HPIM M 103 | B30: 90100 | C30: 1000 | D30: 6350 | E30: 10227.9 | F30: 1859.558 | G30: 3027 | H30: 93.5343 | I30: 97957.9923
A31: HPIM M 110 | B31: 88750 | C31: 1000 | D31: 5500 | E31: 10166.1 | F31: 1848.322 | G31: 3027 | H31: 93.5343 | I31: 97384.9563
A32: TF T 103 / T 105N | B32: 90850 | C32: 1000 | D32: 5250 | E32: 10456.56 | F32: 1901.1312 | G32: 3027 | H32: 93.5343 | I32: 100078.2255
A33: RAFFIA R 103 | B33: 94650 | C33: 1000 | D33: 6400 | E33: 10784.1 | F33: 1960.682 | G33: 3027 | H33: 93.5343 | I33: 103115.3163
A34: BOPP F 103 / F 103S | B34: 91050 | C34: 1000 | D34: 5950 | E34: 10394.76 | F34: 1889.8952 | G34: 3027 | H34: 93.5343 | I34: 99505.1895
A35: PP M 108/ M106 | B35: 88650 | C35: 1000 | D35: 5900 | E35: 10104.3 | F35: 1837.086 | G35: 3027 | H35: 93.5343 | I35: 96811.9203
A36: PP F135 / E125 | B36: 90650 | C36: 1000 | D36: 5300 | E36: 10425.66 | F36: 1895.5132 | G36: 3027 | H36: 93.5343 | I36: 99791.7075
A37: PP HP OG | B37: 83750 | C37: 0 | D37: 0 | E37: 10351.5 | F37: 1882.03 | G37: 3027 | H37: 93.5343 | I37: 99104.0643
A38: PP PS | B38: 79750 | C38: 0 | D38: 0 | E38: 9857.1 | F38: 1792.142 | G38: 3027 | H38: 93.5343 | I38: 94519.7763
A39: PP WS | B39: 77750 | C39: 0 | D39: 0 | E39: 9609.9 | F39: 1747.198 | G39: 3027 | H39: 93.5343 | I39: 92227.6323
A40: PP CP/RCP | F40: 0
A41: PPCP M 311T | B41: 96600 | C41: 1000 | D41: 6750 | E41: =+(B41-C41-D41)*0.1236 -> 10981.86 | F41: 1996.6372 | G41: 3027 | H41: =+G41*0.0309 -> 93.5343 | I41: 104949.0315
A42: PPCP M 340 / M365 | B42: 94300 | C42: 1000 | D42: 6300 | E42: 10753.2 | F42: 1955.064 | G42: 3027 | H42: 93.5343 | I42: 102828.7983
A43: PP CP M 310 | B43: 95000 | C43: 1000 | D43: 6100 | E43: 10864.44 | F43: 1975.2888 | G43: 3027 | H43: 93.5343 | I43: 103860.2631
A44: PP CP M 312 | B44: 93100 | C44: 1000 | D44: 6500 | E44: 10580.16 | F44: 1923.6032 | G44: 3027 | H44: 93.5343 | I44: 101224.2975
A45: PP CP M 304 / M 325 | B45: 93050 | C45: 1000 | D45: 6500 | E45: 10573.98 | F45: 1922.4796 | G45: 3027 | H45: 93.5343 | I45: 101166.9939
A46: PP CP M 307 / M 315 | B46: 92550 | C46: 1000 | D46: 6550 | E46: 10506 | F46: 1910.12 | G46: 3027 | H46: 93.5343 | I46: 100536.6543
A47: PP RCP B 200 | B47: 92400 | C47: 1000 | D47: 5650 | E47: 10598.7 | F47: 1926.974 | G47: 3027 | H47: 93.5343 | I47: 101396.2083
A48: PP RCP B202S | B48: 95400 | C48: 1000 | D48: =+[1]PP!L18 -> 2900 | E48: 11309.4 | F48: 2056.188 | G48: 3027 | H48: 93.5343 | I48: 107986.1223
A49: PP RCP M212S | B49: 94600 | C49: 1000 | D49: 6600 | E49: 10753.2 | F49: 1955.064 | G49: 3027 | H49: 93.5343 | I49: 102828.7983
A50: LLDPE | F50: 0
A51: FILM 71601D | B51: 89950 | C51: 1000 | D51: 7100 | E51: =+(B51-C51-D51)*0.1236 -> 10116.66 | F51: 1839.3332 | G51: 3027 | H51: =+G51*0.0309 -> 93.5343 | I51: 96926.5275
A52: FILM 71501S,71601W | B52: 89400 | C52: 1000 | D52: 7550 | E52: 9993.06 | F52: 1816.8612 | G52: 3027 | H52: 93.5343 | I52: 95780.4555
A53: FILM 71602 S / W | B53: 89400 | C53: 1000 | D53: 7550 | E53: 9993.06 | F53: 1816.8612 | G53: 3027 | H53: 93.5343 | I53: 95780.4555
A54: ROTO 73005 T/73204 T | B54: 90250 | C54: 1000 | D54: 5900 | E54: 10302.06 | F54: 1873.0412 | G54: 3027 | H54: 93.5343 | I54: 98645.6355
A55: ROTO 73005 TU | B55: 91750 | C55: 1000 | D55: 5900 | E55: 10487.46 | F55: 1906.7492 | G55: 3027 | H55: 93.5343 | I55: 100364.7435
A56: EC 72307 E | B56: 91450 | C56: 1000 | D56: 6350 | E56: 10394.76 | F56: 1889.8952 | G56: 3027 | H56: 93.5343 | I56: 99505.1895
A57: LLT - 12 | B57: 90950 | C57: 1000 | D57: 6350 | E57: =+(B57-C57-D57)*0.1236 -> 10332.96 | F57: 1878.6592 | G57: 3027 | H57: =+G57*0.0309 -> 93.5343 | I57: 98932.1535
A58: OG | B58: 85100 | C58: 0 | D58: 1900 | E58: 10283.52 | F58: 1869.6704 | G58: 3027 | H58: 93.5343 | I58: 98473.7247
A59: POST SALES QUANTITY DISCOUNT AS APPLICABLE
A60: QTY. MT FOR HD / LL | B60: >= 10 | C60: >=15 | D60: >=30 | E60: >=60 | F60: >= 100 | G60: >= 200 | H60: >= 400
A61: HDPE/LLDPE | B61: 300/- | C61: 300/- | D61: 400/- | E61: 450/- | F61: 550/- | G61: 650/- | H61: 750/-
A62: QTY. MT FOR PP | B62: >=15 | C62: >=30 | D62: >=60 | E62: >=100 | F62: >=200 | G62: >=400
A63: PP | B63: 300/- | C63: 400/- | D63: 450/- | E63: 550/- | F63: 650/- | G63: 750/-
A64: · FOR CREDIT PURCHASE INTREST FREE CREDIT WILL BE 14 DAYS FROM THE DATE OF INVOICE. AN EPI
A65: RS. 70 / MT PER DAY FOR EX-PLANT
A66: · Trade Discount of Rs. 4000 PMT applicable on R103 - to be adjusted pre-exice basis on Ex-plant sales only.
A67: · Trade Discount of Rs. 3000 PMT applicable on R5801 - to be adjusted pre-exice basis on Ex-plant sales only.
A68: · Trade Discount of Rs. 2000 PMT applicable on B5500 - to be adjusted pre-exice basis on Ex-plant sales only.
A69: · NON PRIME GRADE RS.800/MT LESS THAN THE BASIC PRIME GRADE.
A70: · CHEQUE RETURN PENALTY RS.1000/-PER INSTRUMENT.
A71: · UNLOADING & VARAI CHARGES TO BE BORNE BY THE CUSTOMER.
A72: · “C” FORM REQUIRED IN ADVANCE.
A73: · QUANTITY DISCOUNT WOULD NOT BE APPLICABLE ON COMBINATION OF HDPE AND LLDPE GRADES.
A74: · PRICE MAY CHANGE WITHOUT ANY PRIOR NOTICE. PRICE PREVAILING AT THE TIME OF DISPATCH WILL APPLY.
A75: REGARDS
A76: HITESH SHAH - 9820106078
A77: GIRISH SHAH - 9320949656

Sheet SILVASSA
A1: GANPATI PETROCHEMICALS
A2: Consigment Stockist of : HALDIA PETROCHEMICALS LTD.
A3: 152,Sanjay Bldg. No. 6,Mittal Ind.Estate,Andheri Kurla Road,Marol,Andheri(East),MUMBAI-400 059.
A4: Tel. 28509801 / 28517451 / 32460637 Telefax. 28509802 / E- MAIL ganpetro@vsnl.com
A5: HDPE / PP / LLDPE PRICES EX-HALDIA PETROCHEMICALS LTD. PLANT FOR SILVASSA
A6: Daman W.H. Add :- House no. DGGP / 10-B, Survey No. 747 & 748, Village Kalaria, Nani Daman, Daman - 396210, Tel:-0260-2240086, 9377319643
A7: HDPE, LLDPE & PP PRICE W.E.F. DT. 09.05.2013
A8: GRADE | B8: BASIC | C8: LESS. | D8: LESS. | E8: ADD E.D | F8: ADD CST | G8: ADD | H8: ADD S.T. | I8: CASH AMT
A9: HDPE | C9: C.D. | D9: LOC.SUB | E9: 0.1236 | F9: 0.02 | G9: TRANSP | H9: 0.0309 | I9: PMT
A10: IM 6007L / M 5005L | B10: 88050 | C10: 1000 | D10: 5800 | E10: =+(B10-C10-D10)*0.1236 -> 10042.5 | F10: =+(B10-C10-D10+E10)*0.02 -> 1825.85 | G10: 3027 | H10: =+G10*0.0309 -> 93.5343 | I10: =+B10-C10-D10+E10+F10+G10+H10 -> 96238.8843
A11: IM( 7MFI) M 6007LU | B11: 89550 | C11: 1000 | D11: 5800 | E11: =+(B11-C11-D11)*0.1236 -> 10227.9 | F11: =+(B11-C11-D11+E11)*0.02 -> 1859.558 | G11: 3027 | H11: =+G11*0.0309 -> 93.5343 | I11: =+B11-C11-D11+E11+F11+G11+H11 -> 97957.9923
A12: IM( 4.5 MFI ) M 5002L | B12: 87550 | C12: 1000 | D12: 5800 | E12: 9980.7 | F12: 1814.614 | G12: 3027 | H12: 93.5343 | I12: 95665.8483
A13: HD BM B 6401 | B13: 87000 | C13: 1000 | D13: 5800 | E13: 9912.72 | F13: 1802.2544 | G13: 3027 | H13: 93.5343 | I13: 95035.5087
A14: HD BM E 5201 | B14: 88500 | C14: 1000 | D14: 5800 | E14: 10098.12 | F14: 1835.9624 | G14: 3027 | H14: 93.5343 | I14: 96754.6167
A15: HD BM E5201S | B15: 87500 | C15: 1000 | D15: 5800 | E15: 9974.52 | F15: 1813.4904 | G15: 3027 | H15: 93.5343 | I15: 95608.5447
A16: MBM B 5500 | B16: 90200 | C16: 1000 | D16: 6000 | E16: 10283.52 | F16: 1869.6704 | G16: 3027 | H16: 93.5343 | I16: 98473.7247
A17: HM FILM F 5600/5400 | B17: 88950 | C17: 1000 | D17: 6450 | E17: 10073.4 | F17: 1831.468 | G17: 3027 | H17: 93.5343 | I17: 96525.4023
A18: RAF/MFIL R5801 | B18: 89850 | C18: 1000 | D18: 5600 | E18: 10289.7 | F18: 1870.794 | G18: 3027 | H18: 93.5343 | I18: 98531.0283
A19: RAF/MFIL HD T9 | B19: 86550 | C19: 1000 | D19: 5600 | E19: 9881.82 | F19: 1796.6364 | G19: 3027 | H19: 93.5343 | I19: 94748.9907
A20: HD FILM HDT6 / F5001 | B20: 88850 | C20: 1000 | D20: 6700 | E20: 10030.14 | F20: 1823.6028 | G20: 3027 | H20: 93.5343 | I20: 96124.2771
A21: PIPE P5200UV | B21: 91750 | C21: 1000 | D21: 6550 | E21: 10407.12 | F21: 1892.1424 | G21: 3027 | H21: 93.5343 | I21: 99619.7967
A22: IM M 5018L/M 5025L/M5818 | B22: 86900 | C22: 1000 | D22: 6100 | E22: 9863.28 | F22: 1793.2656 | G22: 3027 | H22: 93.5343 | I22: 94577.0799
A23: RAF HD T10 / HD T10S | B23: 87450 | C23: 1000 | D23: 5600 | E23: 9993.06 | F23: 1816.8612 | G23: 3027 | H23: 93.5343 | I23: 95780.4555
A24: PIPE P 5300 | B24: 93200 | C24: 1000 | D24: 6600 | E24: 10580.16 | F24: 1923.6032 | G24: 3027 | H24: 93.5343 | I24: 101224.2975
A25: PIPE P5200(P.E-63) | B25: 90250 | C25: 1000 | D25: 6550 | E25: 10221.72 | F25: 1858.4344 | G25: 3027 | H25: 93.5343 | I25: 97900.6887
A26: HD T9C | B26: 82950 | C26: 0 | D26: 1850 | E26: 10023.96 | F26: 1822.4792 | G26: 3027 | H26: 93.5343 | I26: 96066.9735
A27: OG | B27: 81950 | C27: 0 | D27: 1850 | E27: =+(B27-C27-D27)*0.1236 -> 9900.36 | F27: =+(B27-C27-D27+E27)*0.02 -> 1800.0072 | G27: 3027 | H27: =+G27*0.0309 -> 93.5343 | I27: =+B27-C27-D27+E27+F27+G27+H27 -> 94920.9015
A28: PP | F28: 0
A29: FILM F 110 | B29: 90300 | C29: 1000 | D29: 5500 | E29: =+(B29-C29-D29)*0.1236 -> 10357.68 | F29: 1883.1536 | G29: 3027 | H29: =+G29*0.0309 -> 93.5343 | I29: 99161.3679
A30: HPIM M 103 | B30: 90100 | C30: 1000 | D30: 6350 | E30: 10227.9 | F30: 1859.558 | G30: 3027 | H30: 93.5343 | I30: 97957.9923
A31: HPIM M 110 | B31: 88750 | C31: 1000 | D31: 5500 | E31: 10166.1 | F31: 1848.322 | G31: 3027 | H31: 93.5343 | I31: 97384.9563
A32: TF T 103 / T 105N | B32: 90850 | C32: 1000 | D32: 5250 | E32: 10456.56 | F32: 1901.1312 | G32: 3027 | H32: 93.5343 | I32: 100078.2255
A33: RAFFIA R 103 | B33: 94650 | C33: 1000 | D33: 6400 | E33: 10784.1 | F33: 1960.682 | G33: 3027 | H33: 93.5343 | I33: 103115.3163
A34: BOPP F 103 / F 103S | B34: 91050 | C34: 1000 | D34: 5950 | E34: 10394.76 | F34: 1889.8952 | G34: 3027 | H34: 93.5343 | I34: 99505.1895
A35: PP M 108/ M106 | B35: 88650 | C35: 1000 | D35: 5900 | E35: 10104.3 | F35: 1837.086 | G35: 3027 | H35: 93.5343 | I35: 96811.9203
A36: PP F135 / E125 | B36: 90650 | C36: 1000 | D36: 5300 | E36: 10425.66 | F36: 1895.5132 | G36: 3027 | H36: 93.5343 | I36: 99791.7075
A37: PP HP OG | B37: 83750 | C37: 0 | D37: 0 | E37: 10351.5 | F37: 1882.03 | G37: 3027 | H37: 93.5343 | I37: 99104.0643
A38: PP PS | B38: 79750 | C38: 0 | D38: 0 | E38: 9857.1 | F38: 1792.142 | G38: 3027 | H38: 93.5343 | I38: 94519.7763
A39: PP WS | B39: 77750 | C39: 0 | D39: 0 | E39: 9609.9 | F39: 1747.198 | G39: 3027 | H39: 93.5343 | I39: 92227.6323
A40: PP CP/RCP | F40: 0
A41: PPCP M 311T | B41: 96600 | C41: 1000 | D41: 6750 | E41: =+(B41-C41-D41)*0.1236 -> 10981.86 | F41: 1996.6372 | G41: 3027 | H41: =+G41*0.0309 -> 93.5343 | I41: 104949.0315
A42: PPCP M 340 / M365 | B42: 94300 | C42: 1000 | D42: 6300 | E42: 10753.2 | F42: 1955.064 | G42: 3027 | H42: 93.5343 | I42: 102828.7983
A43: PP CP M 310 | B43: 95000 | C43: 1000 | D43: 6100 | E43: 10864.44 | F43: 1975.2888 | G43: 3027 | H43: 93.5343 | I43: 103860.2631
A44: PP CP M 312 | B44: 93100 | C44: 1000 | D44: 6500 | E44: 10580.16 | F44: 1923.6032 | G44: 3027 | H44: 93.5343 | I44: 101224.2975
A45: PP CP M 304 / M 325 | B45: 93050 | C45: 1000 | D45: 6500 | E45: 10573.98 | F45: 1922.4796 | G45: 3027 | H45: 93.5343 | I45: 101166.9939
A46: PP CP M 307 / M 315 | B46: 92550 | C46: 1000 | D46: 6550 | E46: 10506 | F46: 1910.12 | G46: 3027 | H46: 93.5343 | I46: 100536.6543
A47: PP RCP B 200 | B47: 92400 | C47: 1000 | D47: 5650 | E47: 10598.7 | F47: 1926.974 | G47: 3027 | H47: 93.5343 | I47: 101396.2083
A48: PP RCP B202S | B48: 95400 | C48: 1000 | D48: 2900 | E48: 11309.4 | F48: 2056.188 | G48: 3027 | H48: 93.5343 | I48: 107986.1223
A49: PP RCP M212S | B49: 94600 | C49: 1000 | D49: 6600 | E49: 10753.2 | F49: 1955.064 | G49: 3027 | H49: 93.5343 | I49: 102828.7983
A50: LLDPE | F50: 0
A51: FILM 71601D | B51: 89950 | C51: 1000 | D51: 7100 | E51: =+(B51-C51-D51)*0.1236 -> 10116.66 | F51: 1839.3332 | G51: 3027 | H51: =+G51*0.0309 -> 93.5343 | I51: 96926.5275
A52: FILM 71501S,71601W | B52: 89400 | C52: 1000 | D52: 7550 | E52: 9993.06 | F52: 1816.8612 | G52: 3027 | H52: 93.5343 | I52: 95780.4555
A53: FILM 71602 S / W | B53: 89400 | C53: 1000 | D53: 7550 | E53: 9993.06 | F53: 1816.8612 | G53: 3027 | H53: 93.5343 | I53: 95780.4555
A54: ROTO 73005 T/73204 T | B54: 90250 | C54: 1000 | D54: 5900 | E54: 10302.06 | F54: 1873.0412 | G54: 3027 | H54: 93.5343 | I54: 98645.6355
A55: ROTO 73005 TU | B55: 91750 | C55: 1000 | D55: 5900 | E55: 10487.46 | F55: 1906.7492 | G55: 3027 | H55: 93.5343 | I55: 100364.7435
A56: EC 72307 E | B56: 91450 | C56: 1000 | D56: 6350 | E56: 10394.76 | F56: 1889.8952 | G56: 3027 | H56: 93.5343 | I56: 99505.1895
A57: LLT - 12 | B57: 90950 | C57: 1000 | D57: 6350 | E57: =+(B57-C57-D57)*0.1236 -> 10332.96 | F57: 1878.6592 | G57: 3027 | H57: =+G57*0.0309 -> 93.5343 | I57: 98932.1535
A58: OG | B58: 85100 | C58: 0 | D58: 1900 | E58: 10283.52 | F58: 1869.6704 | G58: 3027 | H58: 93.5343 | I58: 98473.7247
A59: POST SALES QUANTITY DISCOUNT AS APPLICABLE
A60: QTY. MT FOR HD / LL | B60: >= 10 | C60: >=15 | D60: >=30 | E60: >=60 | F60: >= 100 | G60: >= 200 | H60: >= 400
A61: HDPE/LLDPE | B61: 300/- | C61: 300/- | D61: 400/- | E61: 450/- | F61: 550/- | G61: 650/- | H61: 750/-
A62: QTY. MT FOR PP | B62: >=15 | C62: >=30 | D62: >=60 | E62: >=100 | F62: >=200 | G62: >=400
A63: PP | B63: 300/- | C63: 400/- | D63: 450/- | E63: 550/- | F63: 650/- | G63: 750/-
A64: · FOR CREDIT PURCHASE INTREST FREE CREDIT WILL BE 14 DAYS FROM THE DATE OF INVOICE. AN EPI
A65: RS. 70 / MT PER DAY FOR EX-PLANT
A66: · Trade Discount of Rs. 4000 PMT applicable on R103 - to be adjusted pre-exice basis on Ex-plant sales only.
A67: · Trade Discount of Rs. 3000 PMT applicable on R5801 - to be adjusted pre-exice basis on Ex-plant sales only.
A68: · Trade Discount of Rs. 2000 PMT applicable on B5500 - to be adjusted pre-exice basis on Ex-plant sales only.
A69: · NON PRIME GRADE RS.800/MT LESS THAN THE BASIC PRIME GRADE.
A70: · CHEQUE RETURN PENALTY RS.1000/-PER INSTRUMENT.
A71: · UNLOADING & VARAI CHARGES TO BE BORNE BY THE CUSTOMER.
A72: · “C” FORM REQUIRED IN ADVANCE.
A73: · QUANTITY DISCOUNT WOULD NOT BE APPLICABLE ON COMBINATION OF HDPE AND LLDPE GRADES.
A74: · PRICE MAY CHANGE WITHOUT ANY PRIOR NOTICE. PRICE PREVAILING AT THE TIME OF DISPATCH WILL APPLY.
A75: REGARDS
A76: HITESH SHAH - 9820106078
A77: GIRISH SHAH - 9320949656

Sheet DADRA
A1: GANPATI PETROCHEMICALS
A2: Consigment Stockist of : HALDIA PETROCHEMICALS LTD.
A3: 152,Sanjay Bldg. No. 6,Mittal Ind.Estate,Andheri Kurla Road,Marol,Andheri(East),MUMBAI-400 059.
A4: Tel. 28509801 / 28517451 / 32460637 Telefax. 28509802 / E- MAIL ganpetro@vsnl.com
A5: HDPE / PP / LLDPE PRICES EX-HALDIA PETROCHEMICALS LTD. PLANT FOR DADRA
A6: Daman W.H. Add :- House no. DGGP / 10-B, Survey No. 747 & 748, Village Kalaria, Nani Daman, Daman - 396210, Tel:-0260-2240086, 9377319643
A7: HDPE, LLDPE & PP PRICE W.E.F. DT. 09.05.2013
A8: GRADE | B8: BASIC | C8: LESS. | D8: LESS. | E8: ADD E.D | F8: ADD CST | G8: ADD | H8: ADD S.T. | I8: CASH AMT
A9: HDPE | C9: C.D. | D9: LOC.SUB | E9: 0.1236 | F9: 0.02 | G9: TRANSP | H9: 0.0309 | I9: PMT
A10: IM 6007L / M 5005L | B10: 88050 | C10: 1000 | D10: 5800 | E10: =+(B10-C10-D10)*0.1236 -> 10042.5 | F10: =+(B10-C10-D10+E10)*0.02 -> 1825.85 | G10: 3027 | H10: =+G10*0.0309 -> 93.5343 | I10: =+B10-C10-D10+E10+F10+G10+H10 -> 96238.8843
A11: IM( 7MFI) M 6007LU | B11: 89550 | C11: 1000 | D11: 5800 | E11: =+(B11-C11-D11)*0.1236 -> 10227.9 | F11: =+(B11-C11-D11+E11)*0.02 -> 1859.558 | G11: 3027 | H11: =+G11*0.0309 -> 93.5343 | I11: =+B11-C11-D11+E11+F11+G11+H11 -> 97957.9923
A12: IM( 4.5 MFI ) M 5002L | B12: 87550 | C12: 1000 | D12: 5800 | E12: 9980.7 | F12: 1814.614 | G12: 3027 | H12: 93.5343 | I12: 95665.8483
A13: HD BM B 6401 | B13: 87000 | C13: 1000 | D13: 5800 | E13: =+(B13-C13-D13)*0.1236 -> 9912.72 | F13: 1802.2544 | G13: 3027 | H13: 93.5343 | I13: 95035.5087
A14: HD BM E 5201 | B14: 88500 | C14: 1000 | D14: 5800 | E14: 10098.12 | F14: 1835.9624 | G14: 3027 | H14: 93.5343 | I14: 96754.6167
A15: HD BM E5201S | B15: 87500 | C15: 1000 | D15: 5800 | E15: 9974.52 | F15: 1813.4904 | G15: 3027 | H15: 93.5343 | I15: 95608.5447
A16: MBM B 5500 | B16: 90200 | C16: 1000 | D16: 6000 | E16: 10283.52 | F16: 1869.6704 | G16: 3027 | H16: 93.5343 | I16: 98473.7247
A17: HM FILM F 5600/5400 | B17: 88950 | C17: 1000 | D17: 6450 | E17: 10073.4 | F17: 1831.468 | G17: 3027 | H17: 93.5343 | I17: 96525.4023
A18: RAF/MFIL R5801 | B18: 89850 | C18: 1000 | D18: 5600 | E18: 10289.7 | F18: 1870.794 | G18: 3027 | H18: 93.5343 | I18: 98531.0283
A19: RAF/MFIL HD T9 | B19: 86550 | C19: 1000 | D19: 5600 | E19: 9881.82 | F19: 1796.6364 | G19: 3027 | H19: 93.5343 | I19: 94748.9907
A20: HD FILM HDT6 / F5001 | B20: 88850 | C20: 1000 | D20: 6700 | E20: 10030.14 | F20: 1823.6028 | G20: 3027 | H20: 93.5343 | I20: 96124.2771
A21: PIPE P5200UV | B21: 91750 | C21: 1000 | D21: 6550 | E21: 10407.12 | F21: 1892.1424 | G21: 3027 | H21: 93.5343 | I21: 99619.7967
A22: IM M 5018L/M 5025L/M5818 | B22: 86900 | C22: 1000 | D22: 6100 | E22: 9863.28 | F22: 1793.2656 | G22: 3027 | H22: 93.5343 | I22: 94577.0799
A23: RAF HD T10 / HD T10S | B23: 87450 | C23: 1000 | D23: 5600 | E23: 9993.06 | F23: 1816.8612 | G23: 3027 | H23: 93.5343 | I23: 95780.4555
A24: PIPE P 5300 | B24: 93200 | C24: 1000 | D24: 6600 | E24: 10580.16 | F24: 1923.6032 | G24: 3027 | H24: 93.5343 | I24: 101224.2975
A25: PIPE P5200(P.E-63) | B25: 90250 | C25: 1000 | D25: 6550 | E25: 10221.72 | F25: 1858.4344 | G25: 3027 | H25: 93.5343 | I25: 97900.6887
A26: HD T9C | B26: 82950 | C26: 0 | D26: 1850 | E26: 10023.96 | F26: 1822.4792 | G26: 3027 | H26: 93.5343 | I26: 96066.9735
A27: OG | B27: 81950 | C27: 0 | D27: 1850 | E27: =+(B27-C27-D27)*0.1236 -> 9900.36 | F27: =+(B27-C27-D27+E27)*0.02 -> 1800.0072 | G27: 3027 | H27: =+G27*0.0309 -> 93.5343 | I27: =+B27-C27-D27+E27+F27+G27+H27 -> 94920.9015
A28: PP | F28: 0
A29: FILM F 110 | B29: 90300 | C29: 1000 | D29: 5500 | E29: =+(B29-C29-D29)*0.1236 -> 10357.68 | F29: 1883.1536 | G29: 3027 | H29: =+G29*0.0309 -> 93.5343 | I29: 99161.3679
A30: HPIM M 103 | B30: 90100 | C30: 1000 | D30: 6350 | E30: 10227.9 | F30: 1859.558 | G30: 3027 | H30: 93.5343 | I30: 97957.9923
A31: HPIM M 110 | B31: 88750 | C31: 1000 | D31: 5500 | E31: 10166.1 | F31: 1848.322 | G31: 3027 | H31: 93.5343 | I31: 97384.9563
A32: TF T 103 / T 105N | B32: 90850 | C32: 1000 | D32: 5250 | E32: 10456.56 | F32: 1901.1312 | G32: 3027 | H32: 93.5343 | I32: 100078.2255
A33: RAFFIA R 103 | B33: 94650 | C33: 1000 | D33: 6400 | E33: 10784.1 | F33: 1960.682 | G33: 3027 | H33: 93.5343 | I33: 103115.3163
A34: BOPP F 103 / F 103S | B34: 91050 | C34: 1000 | D34: 5950 | E34: 10394.76 | F34: 1889.8952 | G34: 3027 | H34: 93.5343 | I34: 99505.1895
A35: PP M 108/ M106 | B35: 88650 | C35: 1000 | D35: 5900 | E35: 10104.3 | F35: 1837.086 | G35: 3027 | H35: 93.5343 | I35: 96811.9203
A36: PP F135 / E125 | B36: 90650 | C36: 1000 | D36: 5300 | E36: 10425.66 | F36: 1895.5132 | G36: 3027 | H36: 93.5343 | I36: 99791.7075
A37: PP HP OG | B37: 83750 | C37: 0 | D37: 0 | E37: 10351.5 | F37: 1882.03 | G37: 3027 | H37: 93.5343 | I37: 99104.0643
A38: PP PS | B38: 79750 | C38: 0 | D38: 0 | E38: 9857.1 | F38: 1792.142 | G38: 3027 | H38: 93.5343 | I38: 94519.7763
A39: PP WS | B39: 77750 | C39: 0 | D39: 0 | E39: 9609.9 | F39: 1747.198 | G39: 3027 | H39: 93.5343 | I39: 92227.6323
A40: PP CP/RCP | F40: 0
A41: PPCP M 311T | B41: 96600 | C41: 1000 | D41: 6750 | E41: =+(B41-C41-D41)*0.1236 -> 10981.86 | F41: 1996.6372 | G41: 3027 | H41: =+G41*0.0309 -> 93.5343 | I41: 104949.0315
A42: PPCP M 340 / M365 | B42: 94300 | C42: 1000 | D42: 6300 | E42: 10753.2 | F42: 1955.064 | G42: 3027 | H42: 93.5343 | I42: 102828.7983
A43: PP CP M 310 | B43: 95000 | C43: 1000 | D43: 6100 | E43: 10864.44 | F43: 1975.2888 | G43: 3027 | H43: 93.5343 | I43: 103860.2631
A44: PP CP M 312 | B44: 93100 | C44: 1000 | D44: 6500 | E44: 10580.16 | F44: 1923.6032 | G44: 3027 | H44: 93.5343 | I44: 101224.2975
A45: PP CP M 304 / M 325 | B45: 93050 | C45: 1000 | D45: 6500 | E45: 10573.98 | F45: 1922.4796 | G45: 3027 | H45: 93.5343 | I45: 101166.9939
A46: PP CP M 307 / M 315 | B46: 92550 | C46: 1000 | D46: 6550 | E46: 10506 | F46: 1910.12 | G46: 3027 | H46: 93.5343 | I46: 100536.6543
A47: PP RCP B 200 | B47: 92400 | C47: 1000 | D47: 5650 | E47: 10598.7 | F47: 1926.974 | G47: 3027 | H47: 93.5343 | I47: 101396.2083
A48: PP RCP B202S | B48: 95400 | C48: 1000 | D48: =+[1]PP!L18 -> 2900 | E48: 11309.4 | F48: 2056.188 | G48: 3027 | H48: 93.5343 | I48: 107986.1223
A49: PP RCP M212S | B49: 94600 | C49: 1000 | D49: 6600 | E49: 10753.2 | F49: 1955.064 | G49: 3027 | H49: 93.5343 | I49: 102828.7983
A50: LLDPE | F50: 0
A51: FILM 71601D | B51: 89950 | C51: 1000 | D51: 7100 | E51: =+(B51-C51-D51)*0.1236 -> 10116.66 | F51: 1839.3332 | G51: 3027 | H51: =+G51*0.0309 -> 93.5343 | I51: 96926.5275
A52: FILM 71501S,71601W | B52: 89400 | C52: 1000 | D52: 7550 | E52: 9993.06 | F52: 1816.8612 | G52: 3027 | H52: 93.5343 | I52: 95780.4555
A53: FILM 71602 S / W | B53: 89400 | C53: 1000 | D53: 7550 | E53: 9993.06 | F53: 1816.8612 | G53: 3027 | H53: 93.5343 | I53: 95780.4555
A54: ROTO 73005 T/73204 T | B54: 90250 | C54: 1000 | D54: 5900 | E54: 10302.06 | F54: 1873.0412 | G54: 3027 | H54: 93.5343 | I54: 98645.6355
A55: ROTO 73005 TU | B55: 91750 | C55: 1000 | D55: 5900 | E55: 10487.46 | F55: 1906.7492 | G55: 3027 | H55: 93.5343 | I55: 100364.7435
A56: EC 72307 E | B56: 91450 | C56: 1000 | D56: 6350 | E56: 10394.76 | F56: 1889.8952 | G56: 3027 | H56: 93.5343 | I56: 99505.1895
A57: LLT - 12 | B57: 90950 | C57: 1000 | D57: 6350 | E57: =+(B57-C57-D57)*0.1236 -> 10332.96 | F57: 1878.6592 | G57: 3027 | H57: =+G57*0.0309 -> 93.5343 | I57: 98932.1535
A58: OG | B58: 85100 | C58: 0 | D58: 1900 | E58: 10283.52 | F58: 1869.6704 | G58: 3027 | H58: 93.5343 | I58: 98473.7247
A59: POST SALES QUANTITY DISCOUNT AS APPLICABLE
A60: QTY. MT FOR HD / LL | B60: >= 10 | C60: >=15 | D60: >=30 | E60: >=60 | F60: >= 100 | G60: >= 200 | H60: >= 400
A61: HDPE/LLDPE | B61: 300/- | C61: 300/- | D61: 400/- | E61: 450/- | F61: 550/- | G61: 650/- | H61: 750/-
A62: QTY. MT FOR PP | B62: >=15 | C62: >=30 | D62: >=60 | E62: >=100 | F62: >=200 | G62: >=400
A63: PP | B63: 300/- | C63: 400/- | D63: 450/- | E63: 550/- | F63: 650/- | G63: 750/-
A64: · FOR CREDIT PURCHASE INTREST FREE CREDIT WILL BE 14 DAYS FROM THE DATE OF INVOICE. AN EPI
A65: RS. 70 / MT PER DAY FOR EX-PLANT
A66: · Trade Discount of Rs. 4000 PMT applicable on R103 - to be adjusted pre-exice basis on Ex-plant sales only.
A67: · Trade Discount of Rs. 3000 PMT applicable on R5801 - to be adjusted pre-exice basis on Ex-plant sales only.
A68: · Trade Discount of Rs. 2000 PMT applicable on B5500 - to be adjusted pre-exice basis on Ex-plant sales only.
A69: · NON PRIME GRADE RS.800/MT LESS THAN THE BASIC PRIME GRADE.
A70: · CHEQUE RETURN PENALTY RS.1000/-PER INSTRUMENT.
A71: · UNLOADING & VARAI CHARGES TO BE BORNE BY THE CUSTOMER.
A72: · “C” FORM REQUIRED IN ADVANCE.
A73: · QUANTITY DISCOUNT WOULD NOT BE APPLICABLE ON COMBINATION OF HDPE AND LLDPE GRADES.
A74: · PRICE MAY CHANGE WITHOUT ANY PRIOR NOTICE. PRICE PREVAILING AT THE TIME OF DISPATCH WILL APPLY.
A75: REGARDS
A76: HITESH SHAH - 9820106078
A77: GIRISH SHAH - 9320949656

Sheet GUJARAT (E)
A1: GANPATI PETROCHEMICALS
A2: Consigment Stockist of : HALDIA PETROCHEMICALS LTD.
A3: 152,Sanjay Bldg. No. 6,Mittal Ind.Estate,Andheri Kurla Road,Marol,Andheri(East),MUMBAI-400 059.
A4: Tel. 28509801 / 28517451 / 32460637 Telefax. 28509802 / E- MAIL ganpetro@vsnl.com
A5: HDPE / PP / LLDPE PRICES EX-HALDIA PETROCHEMICALS LTD. PLANT FOR GUJARAT(E)
A6: Daman W.H. Add :- House no. DGGP / 10-B, Survey No. 747 & 748, Village Kalaria, Nani Daman, Daman - 396210, Tel:-0260-2240086, 9377319643
A7: HDPE, LLDPE & PP PRICE W.E.F. DT. 09.05.2013
A8: GRADE | B8: BASIC | C8: LESS. | D8: LESS. | E8: ADD | F8: ADD CST | G8: CASH AMT
A9: HDPE | C9: C.D. | D9: LOC.SUB | E9: 0.1236 | F9: 0.02 | G9: PMT
A10: IM 6007L / M 5005L | B10: 88050 | C10: 1000 | D10: 5400 | E10: =+(B10-C10-D10)*0.1236 -> 10091.94 | F10: =+(B10-C10-D10+E10)*0.02 -> 1834.8388 | G10: =+B10-C10-D10+E10+F10 -> 93576.7788 | I10: TRANS.CHARGES PMT.
A11: IM( 7MFI) M 6007LU | B11: 89550 | C11: 1000 | D11: 5400 | E11: =+(B11-C11-D11)*0.1236 -> 10277.34 | F11: =+(B11-C11-D11+E11)*0.02 -> 1868.5468 | G11: =+B11-C11-D11+E11+F11 -> 95295.8868
A12: IM( 4.5 MFI ) M 5002L | B12: 87550 | C12: 1000 | D12: 5400 | E12: 10030.14 | F12: 1823.6028 | G12: 93003.7428
A13: HD BM B 6401 | B13: 87000 | C13: 1000 | D13: 5450 | E13: 9955.98 | F13: 1810.1196 | G13: 92316.0996 | H13: LOCATIONS | I13: FREIGHT | J13: ADD S.T.
A14: HD BM E 5201 | B14: 88500 | C14: 1000 | D14: 5450 | E14: 10141.38 | F14: 1843.8276 | G14: 94035.2076 | H14: **T.D. | I14: RS/MT. | J14: 0.0309
A15: HD BM E5201S | B15: 87500 | C15: 1000 | D15: 5450 | E15: 10017.78 | F15: 1821.3556 | G15: 92889.1356
A16: MBM B 5500 | B16: 90200 | C16: 1000 | D16: 5650 | E16: 10326.78 | F16: 1877.5356 | G16: 95754.3156
A17: HM FILM F 5600/5400 | B17: 88950 | C17: 1000 | D17: 5650 | E17: 10172.28 | F17: 1849.4456 | G17: 94321.7256 | H17: AHMD. - 5 | I17: 3209 | J17: =+I17*0.0309 -> 99.1581
A18: RAF/MFIL R5801 | B18: 89850 | C18: 1000 | D18: 5250 | E18: 10332.96 | F18: 1878.6592 | G18: 95811.6192 | H18: HALOL - 5 | I18: 3257 | J18: =+I18*0.0309 -> 100.6413
A19: RAF/MFIL HD T9 | B19: 86550 | C19: 1000 | D19: 5250 | E19: 9925.08 | F19: 1804.5016 | G19: 92029.5816 | H19: BARODA - 5 | I19: 3207 | J19: =+I19*0.0309 -> 99.0963
A20: HD FILM HDT6 / F5001 | B20: 88850 | C20: 1000 | D20: 6000 | E20: 10116.66 | F20: 1839.3332 | G20: 93805.9932 | H20: KALOL-M- 5 | I20: 3299 | J20: =+I20*0.0309 -> 101.9391
A21: PIPE P5200UV | B21: 91750 | C21: 1000 | D21: 6100 | E21: 10462.74 | F21: 1902.2548 | G21: 97014.9948
A22: IM M 5018L/M 5025L/M5818 | B22: 86900 | C22: 1000 | D22: 5050 | E22: 9993.06 | F22: 1816.8612 | G22: 92659.9212 | H22: VATVA-5 | I22: 3209 | J22: =+I22*0.0309 -> 99.1581
A23: RAF HD T10 / HD T10S | B23: 87450 | C23: 1000 | D23: 5150 | E23: 10048.68 | F23: 1826.9736 | G23: 93175.6536 | H23: BHARUCH | I23: 2992 | J23: =+I23*0.0309 -> 92.4528
A24: PIPE P 5300 | B24: 93200 | C24: 1000 | D24: 6250 | E24: 10623.42 | F24: 1931.4684 | G24: 98504.8884 | H24: ANAND | I24: 3158 | J24: =+I24*0.0309 -> 97.5822
A25: PIPE P5200(P.E-63) | B25: 90250 | C25: 1000 | D25: 6100 | E25: 10277.34 | F25: 1868.5468 | G25: 95295.8868
A26: HD T9C | B26: 82950 | C26: 0 | D26: 1850 | E26: 10023.96 | F26: 1822.4792 | G26: 92946.4392
A27: OG | B27: 81950 | C27: 0 | D27: 1850 | E27: 9900.36 | F27: 1800.0072 | G27: 91800.3672 | L27: `
A28: PP
A29: FILM F 110 | B29: 90300 | C29: 1000 | D29: 5200 | E29: =+(B29-C29-D29)*0.1236 -> 10394.76 | F29: 1889.8952 | G29: =+B29-C29-D29+E29+F29 -> 96384.6552 | H29: *T.D.=TRANSIT DAYS
A30: HPIM M 103 | B30: 90100 | C30: 1000 | D30: 6200 | E30: 10246.44 | F30: 1862.9288 | G30: 95009.3688
A31: HPIM M 110 | B31: 88750 | C31: 1000 | D31: 5550 | E31: 10159.92 | F31: 1847.1984 | G31: 94207.1184
A32: TF T 103 / T 105N | B32: 90850 | C32: 1000 | D32: 4550 | E32: 10543.08 | F32: 1916.8616 | G32: 97759.9416
A33: RAFFIA R 103 | B33: 94650 | C33: 1000 | D33: 6400 | E33: 10784.1 | F33: 1960.682 | G33: 99994.782
A34: BOPP F 103 / F 103S | B34: 91050 | C34: 1000 | D34: 4650 | E34: 10555.44 | F34: 1919.1088 | G34: 97874.5488
A35: PP M 108/ M106 | B35: 88650 | C35: 1000 | D35: 5900 | E35: 10104.3 | F35: 1837.086 | G35: 93691.386
A36: PP F135 / E125 | B36: 90650 | C36: 1000 | D36: 4750 | E36: 10493.64 | F36: 1907.8728 | G36: 97301.5128
A37: PP HP OG | B37: 83750 | C37: 0 | D37: 0 | E37: 10351.5 | F37: 1882.03 | G37: 95983.53
A38: PP PS | B38: 79750 | C38: 0 | D38: 0 | E38: 9857.1 | F38: 1792.142 | G38: 91399.242
A39: PP WS | B39: 77750 | C39: 0 | D39: 0 | E39: 9609.9 | F39: 1747.198 | G39: 89107.098
A40: PP CP/RCP | E40: =(B40-C40-D40)*16% -> 0 | G40: =(B40-C40-D40)*16%+(B40-C40-D40) -> 0
A41: PPCP M 311T | B41: 96600 | C41: 1000 | D41: 5500 | E41: =+(B41-C41-D41)*0.1236 -> 11136.36 | F41: 2024.7272 | G41: =+B41-C41-D41+E41+F41 -> 103261.0872
A42: PPCP M 340 / M365 | B42: 94300 | C42: 1000 | D42: 5100 | E42: 10901.52 | F42: 1982.0304 | G42: 101083.5504
A43: PP CP M 310 | B43: 95000 | C43: 1000 | D43: =+[1]PP!P15 -> 5200 | E43: 10975.68 | F43: 1995.5136 | G43: 101771.1936
A44: PP CP M 312 | B44: 93100 | C44: 1000 | D44: 5000 | E44: 10765.56 | F44: 1957.3112 | G44: 99822.8712
A45: PP CP M 304 / M 325 | B45: 93050 | C45: 1000 | D45: 5200 | E45: 10734.66 | F45: 1951.6932 | G45: 99536.3532
A46: PP CP M 307 / M 315 | B46: 92550 | C46: 1000 | D46: 5250 | E46: 10666.68 | F46: 1939.3336 | G46: 98906.0136
A47: PP RCP B 200 | B47: 92400 | C47: 1000 | D47: 5200 | E47: 10654.32 | F47: 1937.0864 | G47: 98791.4064
A48: PP RCP B202S | B48: 95400 | C48: 1000 | D48: =+[1]PP!L15 -> 2200 | E48: 11395.92 | F48: 2071.9184 | G48: 105667.8384
A49: PP RCP M212S | B49: 94600 | C49: 1000 | D49: 5300 | E49: 10913.88 | F49: 1984.2776 | G49: 101198.1576
A50: LLDPE
A51: FILM 71601D | B51: 89950 | C51: 1000 | D51: 6500 | E51: =+(B51-C51-D51)*0.1236 -> 10190.82 | F51: 1852.8164 | G51: =+B51-C51-D51+E51+F51 -> 94493.6364
A52: FILM 71501S,71601W | B52: 89400 | C52: 1000 | D52: 6950 | E52: 10067.22 | F52: 1830.3444 | G52: 93347.5644
A53: FILM 71602 S / W | B53: 89400 | C53: 1000 | D53: 6950 | E53: 10067.22 | F53: 1830.3444 | G53: 93347.5644
A54: ROTO 73005 T/73204 T | B54: 90250 | C54: 1000 | D54: 5500 | E54: 10351.5 | F54: 1882.03 | G54: 95983.53
A55: ROTO 73005 TU | B55: 91750 | C55: 1000 | D55: 5500 | E55: 10536.9 | F55: 1915.738 | G55: 97702.638
A56: EC 72307 E | B56: 91450 | C56: 1000 | D56: 6000 | E56: 10438.02 | F56: 1897.7604 | G56: 96785.7804
A57: LLT - 12 | B57: 90950 | C57: 1000 | D57: 6000 | E57: =+(B57-C57-D57)*0.1236 -> 10376.22 | F57: 1886.5244 | G57: 96212.7444
A58: OG | B58: 85100 | C58: 0 | D58: 1900 | E58: 10283.52 | F58: 1869.6704 | G58: 95353.1904
A59: POST SALES QUANTITY DISCOUNT AS APPLICABLE
A60: QTY. MT FOR HD / LL | B60: >= 10 | C60: >=15 | D60: >=30 | E60: >=60 | F60: >= 100 | G60: >= 200 | H60: >= 400
A61: HDPE/LLDPE | B61: 300/- | C61: 300/- | D61: 400/- | E61: 450/- | F61: 550/- | G61: 650/- | H61: 750/-
A62: QTY. MT FOR PP | B62: >=15 | C62: >=30 | D62: >=60 | E62: >=100 | F62: >=200 | G62: >=400
A63: PP | B63: 300/- | C63: 400/- | D63: 450/- | E63: 550/- | F63: 650/- | G63: 750/-
A64: · FOR CREDIT PURCHASE INTREST FREE CREDIT WILL BE 14 DAYS FROM THE DATE OF INVOICE. AN EPI
A65: RS. 70 / MT PER DAY FOR EX-PLANT
A66: · Trade Discount of Rs. 4000 PMT applicable on R103 - to be adjusted pre-exice basis on Ex-plant sales only.
A67: · Trade Discount of Rs. 3000 PMT applicable on R5801 - to be adjusted pre-exice basis on Ex-plant sales only.
A68: · Trade Discount of Rs. 2000 PMT applicable on B5500 - to be adjusted pre-exice basis on Ex-plant sales only.
A69: · NON PRIME GRADE RS.800/MT LESS THAN THE BASIC PRIME GRADE.
A70: · CHEQUE RETURN PENALTY RS.1000/-PER INSTRUMENT.
A71: · UNLOADING & VARAI CHARGES TO BE BORNE BY THE CUSTOMER.
A72: · “C” FORM REQUIRED IN ADVANCE.
A73: · QUANTITY DISCOUNT WOULD NOT BE APPLICABLE ON COMBINATION OF HDPE AND LLDPE GRADES.
A74: · PRICE MAY CHANGE WITHOUT ANY PRIOR NOTICE. PRICE PREVAILING AT THE TIME OF DISPATCH WILL APPLY.
A75: REGARDS
A76: HITESH SHAH - 9820106078
A77: GIRISH SHAH - 9320949656

Sheet GUJARAT (S)
A1: GANPATI PETROCHEMICALS
A2: Consigment Stockist of : HALDIA PETROCHEMICALS LTD.
A3: 152,Sanjay Bldg. No. 6,Mittal Ind.Estate,Andheri Kurla Road,Marol,Andheri(East),MUMBAI-400 059.
A4: Tel. 28509801 / 28517451 / 32460637 Telefax. 28509802 / E- MAIL ganpetro@vsnl.com
A5: HDPE / PP / LLDPE PRICES EX-HALDIA PETROCHEMICALS LTD. PLANT FOR GUJARAT(SOUTH)
A6: Daman W.H. Add :- House no. DGGP / 10-B, Survey No. 747 & 748, Village Kalaria, Nani Daman, Daman - 396210, Tel:-0260-2240086, 9377319643
A7: HDPE, LLDPE & PP PRICE W.E.F. DT. 09.05.2013
A8: GRADE | B8: BASIC | C8: LESS. | D8: LESS. | E8: ADD | F8: ADD CST | G8: CASH AMT
A9: HDPE | C9: C.D. | D9: LOC.SUB | E9: 0.1236 | F9: 0.02 | G9: PMT
A10: IM 6007L / M 5005L | B10: 88050 | C10: 1000 | D10: 5650 | E10: =+(B10-C10-D10)*0.1236 -> 10061.04 | F10: =+(B10-C10-D10+E10)*0.02 -> 1829.2208 | G10: =+B10-C10-D10+E10+F10 -> 93290.2608 | I10: TRANS.CHARGES PMT.
A11: IM( 7MFI) M 6007LU | B11: 89550 | C11: 1000 | D11: 5650 | E11: =+(B11-C11-D11)*0.1236 -> 10246.44 | F11: =+(B11-C11-D11+E11)*0.02 -> 1862.9288 | G11: =+B11-C11-D11+E11+F11 -> 95009.3688
A12: IM( 4.5 MFI ) M 5002L | B12: 87550 | C12: 1000 | D12: 5650 | E12: 9999.24 | F12: 1817.9848 | G12: 92717.2248
A13: HD BM B 6401 | B13: 87000 | C13: 1000 | D13: 5900 | E13: 9900.36 | F13: 1800.0072 | G13: 91800.3672 | H13: LOCATIONS | I13: FREIGHT | J13: ADD S.T.
A14: HD BM E 5201 | B14: 88500 | C14: 1000 | D14: 5900 | E14: 10085.76 | F14: 1833.7152 | G14: 93519.4752 | H14: **T.D. | I14: RS/MT. | J14: 0.0309
A15: HD BM E5201S | B15: 87500 | C15: 1000 | D15: 5900 | E15: 9962.16 | F15: 1811.2432 | G15: 92373.4032
A16: MBM B 5500 | B16: 90200 | C16: 1000 | D16: 6050 | E16: 10277.34 | F16: 1868.5468 | G16: 95295.8868
A17: HM FILM F 5600/5400 | B17: 88950 | C17: 1000 | D17: 6050 | E17: 10122.84 | F17: 1840.4568 | G17: 93863.2968 | H17: VAPI - 5 | I17: 3027 | J17: =+I17*0.0309 -> 93.5343
A18: RAF/MFIL R5801 | B18: 89850 | C18: 1000 | D18: 5700 | E18: 10277.34 | F18: 1868.5468 | G18: 95295.8868 | H18: SURAT - 5 | I18: 3005 | J18: =+I18*0.0309 -> 92.8545
A19: RAF/MFIL HD T9 | B19: 86550 | C19: 1000 | D19: 5700 | E19: 9869.46 | F19: 1794.3892 | G19: 91513.8492 | H19: UMERGAON - 5 | I19: 3006 | J19: =+I19*0.0309 -> 92.8854
A20: HD FILM HDT6 / F5001 | B20: 88850 | C20: 1000 | D20: 6450 | E20: 10061.04 | F20: 1829.2208 | G20: 93290.2608 | H20: VALSAD - 5 | I20: 3026 | J20: =+I20*0.0309 -> 93.5034
A21: PIPE P5200UV | B21: 91750 | C21: 1000 | D21: 6400 | E21: 10425.66 | F21: 1895.5132 | G21: 96671.1732
A22: IM M 5018L/M 5025L/M5818 | B22: 86900 | C22: 1000 | D22: 5350 | E22: 9955.98 | F22: 1810.1196 | G22: 92316.0996
A23: RAF HD T10 / HD T10S | B23: 87450 | C23: 1000 | D23: 5450 | E23: 10011.6 | F23: 1820.232 | G23: 92831.832
A24: PIPE P 5300 | B24: 93200 | C24: 1000 | D24: 6650 | E24: 10573.98 | F24: 1922.4796 | G24: 98046.4596
A25: PIPE P5200(P.E-63) | B25: 90250 | C25: 1000 | D25: 6400 | E25: 10240.26 | F25: 1861.8052 | G25: 94952.0652
A26: HD T9C | B26: 82950 | C26: 0 | D26: 1850 | E26: 10023.96 | F26: 1822.4792 | G26: 92946.4392
A27: OG | B27: 81950 | C27: 0 | D27: 1850 | E27: 9900.36 | F27: 1800.0072 | G27: 91800.3672
A28: PP
A29: FILM F 110 | B29: 90300 | C29: 1000 | D29: 5200 | E29: =+(B29-C29-D29)*0.1236 -> 10394.76 | F29: 1889.8952 | G29: =+B29-C29-D29+E29+F29 -> 96384.6552 | H29: *T.D.=TRANSIT DAYS
A30: HPIM M 103 | B30: 90100 | C30: 1000 | D30: 6200 | E30: 10246.44 | F30: 1862.9288 | G30: 95009.3688
A31: HPIM M 110 | B31: 88750 | C31: 1000 | D31: 5550 | E31: 10159.92 | F31: 1847.1984 | G31: 94207.1184
A32: TF T 103 / T 105N | B32: 90850 | C32: 1000 | D32: 4550 | E32: 10543.08 | F32: 1916.8616 | G32: 97759.9416
A33: RAFFIA R 103 | B33: 94650 | C33: 1000 | D33: 6400 | E33: 10784.1 | F33: 1960.682 | G33: 99994.782
A34: BOPP F 103 / F 103S | B34: 91050 | C34: 1000 | D34: 4650 | E34: 10555.44 | F34: 1919.1088 | G34: 97874.5488
A35: PP M 108/ M106 | B35: 88650 | C35: 1000 | D35: 5900 | E35: 10104.3 | F35: 1837.086 | G35: 93691.386
A36: PP F135 / E125 | B36: 90650 | C36: 1000 | D36: 4750 | E36: 10493.64 | F36: 1907.8728 | G36: 97301.5128
A37: PP HP OG | B37: 83750 | C37: 0 | D37: 0 | E37: 10351.5 | F37: 1882.03 | G37: 95983.53
A38: PP PS | B38: 79750 | C38: 0 | D38: 0 | E38: 9857.1 | F38: 1792.142 | G38: 91399.242
A39: PP WS | B39: 77750 | C39: 0 | D39: 0 | E39: 9609.9 | F39: 1747.198 | G39: 89107.098
A40: PP CP/RCP | E40: =(B40-C40-D40)*16% -> 0 | G40: =(B40-C40-D40)*16%+(B40-C40-D40) -> 0
A41: PPCP M 311T | B41: 96600 | C41: 1000 | D41: 5500 | E41: =+(B41-C41-D41)*0.1236 -> 11136.36 | F41: 2024.7272 | G41: =+B41-C41-D41+E41+F41 -> 103261.0872
A42: PPCP M 340 / M365 | B42: 94300 | C42: 1000 | D42: 5100 | E42: 10901.52 | F42: 1982.0304 | G42: 101083.5504
A43: PP CP M 310 | B43: 95000 | C43: 1000 | D43: =+[1]PP!P15 -> 5200 | E43: 10975.68 | F43: 1995.5136 | G43: 101771.1936
A44: PP CP M 312 | B44: 93100 | C44: 1000 | D44: 5000 | E44: 10765.56 | F44: 1957.3112 | G44: 99822.8712
A45: PP CP M 304 / M 325 | B45: 93050 | C45: 1000 | D45: 5200 | E45: 10734.66 | F45: 1951.6932 | G45: 99536.3532
A46: PP CP M 307 / M 315 | B46: 92550 | C46: 1000 | D46: 5250 | E46: 10666.68 | F46: 1939.3336 | G46: 98906.0136
A47: PP RCP B 200 | B47: 92400 | C47: 1000 | D47: 5200 | E47: 10654.32 | F47: 1937.0864 | G47: 98791.4064
A48: PP RCP B202S | B48: 95400 | C48: 1000 | D48: =+[1]PP!L15 -> 2200 | E48: 11395.92 | F48: 2071.9184 | G48: 105667.8384
A49: PP RCP M212S | B49: 94600 | C49: 1000 | D49: 5300 | E49: 10913.88 | F49: 1984.2776 | G49: 101198.1576
A50: LLDPE
A51: FILM 71601D | B51: 89950 | C51: 1000 | D51: 6900 | E51: =+(B51-C51-D51)*0.1236 -> 10141.38 | F51: 1843.8276 | G51: =+B51-C51-D51+E51+F51 -> 94035.2076
A52: FILM 71501S,71601W | B52: 89400 | C52: 1000 | D52: 7350 | E52: 10017.78 | F52: 1821.3556 | G52: 92889.1356
A53: FILM 71602 S / W | B53: 89400 | C53: 1000 | D53: 7350 | E53: 10017.78 | F53: 1821.3556 | G53: 92889.1356
A54: ROTO 73005 T/73204 T | B54: 90250 | C54: 1000 | D54: 5800 | E54: 10314.42 | F54: 1875.2884 | G54: 95639.7084
A55: ROTO 73005 TU | B55: 91750 | C55: 1000 | D55: 5800 | E55: 10499.82 | F55: 1908.9964 | G55: 97358.8164
A56: EC 72307 E | B56: 91450 | C56: 1000 | D56: 6450 | E56: 10382.4 | F56: 1887.648 | G56: 96270.048
A57: LLT - 12 | B57: 90950 | C57: 1000 | D57: 6450 | E57: =+(B57-C57-D57)*0.1236 -> 10320.6 | F57: 1876.412 | G57: 95697.012
A58: OG | B58: 85100 | C58: 0 | D58: 1900 | E58: 10283.52 | F58: 1869.6704 | G58: 95353.1904
A59: POST SALES QUANTITY DISCOUNT AS APPLICABLE
A60: QTY. MT FOR HD / LL | B60: >= 10 | C60: >=15 | D60: >=30 | E60: >=60 | F60: >= 100 | G60: >= 200 | H60: >= 400
A61: HDPE/LLDPE | B61: 300/- | C61: 300/- | D61: 400/- | E61: 450/- | F61: 550/- | G61: 650/- | H61: 750/-
A62: QTY. MT FOR PP | B62: >=15 | C62: >=30 | D62: >=60 | E62: >=100 | F62: >=200 | G62: >=400
A63: PP | B63: 300/- | C63: 400/- | D63: 450/- | E63: 550/- | F63: 650/- | G63: 750/-
A64: · FOR CREDIT PURCHASE INTREST FREE CREDIT WILL BE 14 DAYS FROM THE DATE OF INVOICE. AN EPI
A65: RS. 70 / MT PER DAY FOR EX-PLANT
A66: · Trade Discount of Rs. 4000 PMT applicable on R103 - to be adjusted pre-exice basis on Ex-plant sales only.
A67: · Trade Discount of Rs. 3000 PMT applicable on R5801 - to be adjusted pre-exice basis on Ex-plant sales only.
A68: · Trade Discount of Rs. 2000 PMT applicable on B5500 - to be adjusted pre-exice basis on Ex-plant sales only.
A69: · NON PRIME GRADE RS.800/MT LESS THAN THE BASIC PRIME GRADE.
A70: · CHEQUE RETURN PENALTY RS.1000/-PER INSTRUMENT.
A71: · UNLOADING & VARAI CHARGES TO BE BORNE BY THE CUSTOMER.
A72: · “C” FORM REQUIRED IN ADVANCE.
A73: · QUANTITY DISCOUNT WOULD NOT BE APPLICABLE ON COMBINATION OF HDPE AND LLDPE GRADES.
A74: · PRICE MAY CHANGE WITHOUT ANY PRIOR NOTICE. PRICE PREVAILING AT THE TIME OF DISPATCH WILL APPLY.
A75: REGARDS
A76: HITESH SHAH - 9820106078
A77: GIRISH SHAH - 9320949656

Sheet GUJARAT (W)
A1: GANPATI PETROCHEMICALS
A2: Consigment Stockist of : HALDIA PETROCHEMICALS LTD.
A3: 152,Sanjay Bldg. No. 6,Mittal Ind.Estate,Andheri Kurla Road,Marol,Andheri(East),MUMBAI-400 059.
A4: Tel. 28509801 / 28517451 / 32460637 Telefax. 28509802 / E- MAIL ganpetro@vsnl.com
A5: HDPE / PP / LLDPE PRICES EX-HALDIA PETROCHEMICALS LTD. PLANT FOR GUJARAT(WEST)
A6: Daman W.H. Add :- House no. DGGP / 10-B, Survey No. 747 & 748, Village Kalaria, Nani Daman, Daman - 396210, Tel:-0260-2240086, 9377319643
A7: HDPE, LLDPE & PP PRICE W.E.F. DT. 09.05.2013
A8: GRADE | B8: BASIC | C8: LESS. | D8: LESS. | E8: ADD | F8: ADD CST | G8: CASH AMT
A9: HDPE | C9: C.D. | D9: LOC.SUB | E9: 0.1236 | F9: 0.02 | G9: PMT
A10: IM 6007L / M 5005L | B10: 88050 | C10: 1000 | D10: 5900 | E10: =+(B10-C10-D10)*0.1236 -> 10030.14 | F10: =+(B10-C10-D10+E10)*0.02 -> 1823.6028 | G10: =+B10-C10-D10+E10+F10 -> 93003.7428 | I10: TRANS.CHARGES PMT.
A11: IM( 7MFI) M 6007LU | B11: 89550 | C11: 1000 | D11: 5900 | E11: =+(B11-C11-D11)*0.1236 -> 10215.54 | F11: =+(B11-C11-D11+E11)*0.02 -> 1857.3108 | G11: =+B11-C11-D11+E11+F11 -> 94722.8508
A12: IM( 4.5 MFI ) M 5002L | B12: 87550 | C12: 1000 | D12: 5900 | E12: 9968.34 | F12: 1812.3668 | G12: 92430.7068
A13: HD BM B 6401 | B13: 87000 | C13: 1000 | D13: 5750 | E13: 9918.9 | F13: 1803.378 | G13: 91972.278 | H13: LOCATIONS | I13: FREIGHT | J13: ADD S.T.
A14: HD BM E 5201 | B14: 88500 | C14: 1000 | D14: 5750 | E14: 10104.3 | F14: 1837.086 | G14: 93691.386 | H14: **T.D. | I14: RS/MT. | J14: 0.0309
A15: HD BM E5201S | B15: 87500 | C15: 1000 | D15: 5750 | E15: 9980.7 | F15: 1814.614 | G15: 92545.314
A16: MBM B 5500 | B16: 90200 | C16: 1000 | D16: 6100 | E16: 10271.16 | F16: 1867.4232 | G16: 95238.5832
A17: HM FILM F 5600/5400 | B17: 88950 | C17: 1000 | D17: 6050 | E17: 10122.84 | F17: 1840.4568 | G17: 93863.2968 | H17: RAJKOT - 6 | I17: 3652 | J17: =+I17*0.0309 -> 112.8468
A18: RAF/MFIL R5801 | B18: 89850 | C18: 1000 | D18: 5650 | E18: 10283.52 | F18: 1869.6704 | G18: 95353.1904 | H18: BHAVNAGAR-6 | I18: 3752 | J18: =+I18*0.0309 -> 115.9368
A19: RAF/MFIL HD T9 | B19: 86550 | C19: 1000 | D19: 5650 | E19: 9875.64 | F19: 1795.5128 | G19: 91571.1528
A20: HD FILM HDT6 / F5001 | B20: 88850 | C20: 1000 | D20: 6300 | E20: 10079.58 | F20: 1832.5916 | G20: 93462.1716
A21: PIPE P5200UV | B21: 91750 | C21: 1000 | D21: 6650 | E21: 10394.76 | F21: 1889.8952 | G21: 96384.6552
A22: IM M 5018L/M 5025L/M5818 | B22: 86900 | C22: 1000 | D22: 5500 | E22: 9937.44 | F22: 1806.7488 | G22: 92144.1888
A23: RAF HD T10 / HD T10S | B23: 87450 | C23: 1000 | D23: 5600 | E23: 9993.06 | F23: 1816.8612 | G23: 92659.9212
A24: PIPE P 5300 | B24: 93200 | C24: 1000 | D24: 6700 | E24: 10567.8 | F24: 1921.356 | G24: 97989.156
A25: PIPE P5200(P.E-63) | B25: 90250 | C25: 1000 | D25: 6650 | E25: 10209.36 | F25: 1856.1872 | G25: 94665.5472
A26: HD T9C | B26: 82950 | C26: 0 | D26: 1850 | E26: 10023.96 | F26: 1822.4792 | G26: 92946.4392
A27: OG | B27: 81950 | C27: 0 | D27: 1850 | E27: 9900.36 | F27: 1800.0072 | G27: 91800.3672
A28: PP
A29: FILM F 110 | B29: 90300 | C29: 1000 | D29: 5200 | E29: =+(B29-C29-D29)*0.1236 -> 10394.76 | F29: =+(B29-C29-D29+E29)*0.02 -> 1889.8952 | G29: =+B29-C29-D29+E29+F29 -> 96384.6552 | H29: *T.D.=TRANSIT DAYS
A30: HPIM M 103 | B30: 90100 | C30: 1000 | D30: 6300 | E30: 10234.08 | F30: 1860.6816 | G30: 94894.7616
A31: HPIM M 110 | B31: 88750 | C31: 1000 | D31: 5550 | E31: 10159.92 | F31: 1847.1984 | G31: 94207.1184
A32: TF T 103 / T 105N | B32: 90850 | C32: 1000 | D32: 5500 | E32: 10425.66 | F32: 1895.5132 | G32: 96671.1732
A33: RAFFIA R 103 | B33: 94650 | C33: 1000 | D33: 6400 | E33: 10784.1 | F33: 1960.682 | G33: 99994.782
A34: BOPP F 103 / F 103S | B34: 91050 | C34: 1000 | D34: 4650 | E34: 10555.44 | F34: 1919.1088 | G34: 97874.5488
A35: PP M 108/ M106 | B35: 88650 | C35: 1000 | D35: 5900 | E35: 10104.3 | F35: 1837.086 | G35: 93691.386
A36: PP F135 / E125 | B36: 90650 | C36: 1000 | D36: 6000 | E36: 10339.14 | F36: 1879.7828 | G36: 95868.9228
A37: PP HP OG | B37: 83750 | C37: 0 | D37: 0 | E37: 10351.5 | F37: 1882.03 | G37: 95983.53
A38: PP PS | B38: 79750 | C38: 0 | D38: 0 | E38: 9857.1 | F38: 1792.142 | G38: 91399.242
A39: PP WS | B39: 77750 | C39: 0 | D39: 0 | E39: 9609.9 | F39: 1747.198 | G39: 89107.098
A40: PP CP/RCP | E40: =(B40-C40-D40)*16% -> 0 | G40: =(B40-C40-D40)*16%+(B40-C40-D40) -> 0
A41: PPCP M 311T | B41: 96600 | C41: 1000 | D41: 6450 | E41: =+(B41-C41-D41)*0.1236 -> 11018.94 | F41: =+(B41-C41-D41+E41)*0.02 -> 2003.3788 | G41: =+B41-C41-D41+E41+F41 -> 102172.3188
A42: PPCP M 340 / M365 | B42: 94300 | C42: 1000 | D42: 6050 | E42: 10784.1 | F42: 1960.682 | G42: 99994.782
A43: PP CP M 310 | B43: 95000 | C43: 1000 | D43: =+[1]PP!P16 -> 6150 | E43: 10858.26 | F43: 1974.1652 | G43: 100682.4252
A44: PP CP M 312 | B44: 93100 | C44: 1000 | D44: 5950 | E44: 10648.14 | F44: 1935.9628 | G44: 98734.1028
A45: PP CP M 304 / M 325 | B45: 93050 | C45: 1000 | D45: 6150 | E45: 10617.24 | F45: 1930.3448 | G45: 98447.5848
A46: PP CP M 307 / M 315 | B46: 92550 | C46: 1000 | D46: 6200 | E46: 10549.26 | F46: 1917.9852 | G46: 97817.2452
A47: PP RCP B 200 | B47: 92400 | C47: 1000 | D47: 7000 | E47: 10431.84 | F47: 1896.6368 | G47: 96728.4768
A48: PP RCP B202S | B48: 95400 | C48: 1000 | D48: =+[1]PP!L16 -> 2050 | E48: 11414.46 | F48: 2075.2892 | G48: 105839.7492
A49: PP RCP M212S | B49: 94600 | C49: 1000 | D49: =+[1]PP!K16 -> 6000 | E49: 10827.36 | F49: 1968.5472 | G49: 100395.9072
A50: LLDPE
A51: FILM 71601D | B51: 89950 | C51: 1000 | D51: 7000 | E51: =+(B51-C51-D51)*0.1236 -> 10129.02 | F51: =+(B51-C51-D51+E51)*0.02 -> 1841.5804 | G51: =+B51-C51-D51+E51+F51 -> 93920.6004
A52: FILM 71501S,71601W | B52: 89400 | C52: 1000 | D52: 7450 | E52: 10005.42 | F52: 1819.1084 | G52: 92774.5284
A53: FILM 71602 S / W | B53: 89400 | C53: 1000 | D53: 7450 | E53: 10005.42 | F53: 1819.1084 | G53: 92774.5284
A54: ROTO 73005 T/73204 T | B54: 90250 | C54: 1000 | D54: 6000 | E54: 10289.7 | F54: 1870.794 | G54: 95410.494
A55: ROTO 73005 TU | B55: 91750 | C55: 1000 | D55: 6000 | E55: 10475.1 | F55: 1904.502 | G55: 97129.602
A56: EC 72307 E | B56: 91450 | C56: 1000 | D56: 6300 | E56: 10400.94 | F56: 1891.0188 | G56: 96441.9588
A57: LLT - 12 | B57: 90950 | C57: 1000 | D57: 6300 | E57: =+(B57-C57-D57)*0.1236 -> 10339.14 | F57: 1879.7828 | G57: 95868.9228
A58: OG | B58: 85100 | C58: 0 | D58: 1900 | E58: 10283.52 | F58: 1869.6704 | G58: 95353.1904
A59: POST SALES QUANTITY DISCOUNT AS APPLICABLE
A60: QTY. MT FOR HD / LL | B60: >= 10 | C60: >=15 | D60: >=30 | E60: >=60 | F60: >= 100 | G60: >= 200 | H60: >= 400
A61: HDPE/LLDPE | B61: 300/- | C61: 300/- | D61: 400/- | E61: 450/- | F61: 550/- | G61: 650/- | H61: 750/-
A62: QTY. MT FOR PP | B62: >=15 | C62: >=30 | D62: >=60 | E62: >=100 | F62: >=200 | G62: >=400
A63: PP | B63: 300/- | C63: 400/- | D63: 450/- | E63: 550/- | F63: 650/- | G63: 750/-
A64: · FOR CREDIT PURCHASE INTREST FREE CREDIT WILL BE 14 DAYS FROM THE DATE OF INVOICE. AN EPI
A65: RS. 70 / MT PER DAY FOR EX-PLANT
A66: · Trade Discount of Rs. 4000 PMT applicable on R103 - to be adjusted pre-exice basis on Ex-plant sales only.
A67: · Trade Discount of Rs. 3000 PMT applicable on R5801 - to be adjusted pre-exice basis on Ex-plant sales only.
A68: · Trade Discount of Rs. 2000 PMT applicable on B5500 - to be adjusted pre-exice basis on Ex-plant sales only.
A69: · NON PRIME GRADE RS.800/MT LESS THAN THE BASIC PRIME GRADE.
A70: · CHEQUE RETURN PENALTY RS.1000/-PER INSTRUMENT.
A71: · UNLOADING & VARAI CHARGES TO BE BORNE BY THE CUSTOMER.
A72: · “C” FORM REQUIRED IN ADVANCE.
A73: · QUANTITY DISCOUNT WOULD NOT BE APPLICABLE ON COMBINATION OF HDPE AND LLDPE GRADES.
A74: · PRICE MAY CHANGE WITHOUT ANY PRIOR NOTICE. PRICE PREVAILING AT THE TIME OF DISPATCH WILL APPLY.
A75: REGARDS
A76: HITESH SHAH - 9820106078
A77: GIRISH SHAH - 9320949656

Sheet BHIWANDI
A1: GANPATI PETROCHEMICALS
A2: Consigment Stockist of : HALDIA PETROCHEMICALS LTD.
A3: 152,Sanjay Bldg. No. 6,Mittal Ind.Estate,Andheri Kurla Road,Marol,Andheri(East),MUMBAI-400 059.
A4: Tel. 28509801 / 28517451 / 32460637 Telefax. 28509802 / E- MAIL ganpetro@vsnl.com
A5: HDPE / PP / LLDPE PRICES EX-HALDIA PETROCHEMICALS LTD. PLANT FOR BHIWANDI
A6: Bhivandi W.H. Add :- Godown No. 20,Thakkar Compound,Valgaon,Anjur Rd,Bhivandi,Dist. Thane. TEL:- 09324038864
A7: HDPE, LLDPE & PP PRICE W.E.F. DT. 09.05.2013
A8: GRADE | B8: BASIC | C8: LESS. | D8: LESS. | E8: ADD E.D | F8: ADD CST | G8: ADD | H8: ADD S.T. | I8: CASH AMT
A9: HDPE | C9: C.D. | D9: LOC.SUB | E9: 0.1236 | F9: 0.02 | G9: TRANSP | H9: 0.0309 | I9: PMT
A10: IM 6007L / M 5005L | B10: 88050 | C10: 1000 | D10: 5950 | E10: =+(B10-C10-D10)*0.1236 -> 10023.96 | F10: =+(B10-C10-D10+E10)*0.02 -> 1822.4792 | G10: 3000 | H10: =+G10*0.0309 -> 92.7 | I10: =+B10-C10-D10+E10+F10+G10+H10 -> 96039.1392
A11: IM( 7MFI) M 6007LU | B11: 89550 | C11: 1000 | D11: 5950 | E11: =+(B11-C11-D11)*0.1236 -> 10209.36 | F11: 1856.1872 | G11: 3000 | H11: 92.7 | I11: =+B11-C11-D11+E11+F11+G11+H11 -> 97758.2472
A12: IM( 4.5 MFI ) M 5002L | B12: 87550 | C12: 1000 | D12: 5950 | E12: 9962.16 | F12: 1811.2432 | G12: 3000 | H12: 92.7 | I12: =+B12-C12-D12+E12+F12+G12+H12 -> 95466.1032
A13: HD BM B 6401 | B13: 87000 | C13: 1000 | D13: 6000 | E13: 9888 | F13: 1797.76 | G13: 3000 | H13: 92.7 | I13: 94778.46
A14: HD BM E 5201 | B14: 88500 | C14: 1000 | D14: 6000 | E14: 10073.4 | F14: 1831.468 | G14: 3000 | H14: 92.7 | I14: 96497.568
A15: HD BM E5201S | B15: 87500 | C15: 1000 | D15: 6000 | E15: 9949.8 | F15: 1808.996 | G15: 3000 | H15: 92.7 | I15: 95351.496
A16: MBM B 5500 | B16: 90200 | C16: 1000 | D16: 6150 | E16: 10264.98 | F16: 1866.2996 | G16: 3000 | H16: 92.7 | I16: 98273.9796
A17: HM FILM F 5600/5400 | B17: 88950 | C17: 1000 | D17: 6050 | E17: 10122.84 | F17: 1840.4568 | G17: 3000 | H17: 92.7 | I17: 96955.9968
A18: RAF/MFIL R5801 | B18: 89850 | C18: 1000 | D18: 5850 | E18: 10258.8 | F18: 1865.176 | G18: 3000 | H18: 92.7 | I18: 98216.676
A19: RAF/MFIL HD T9 | B19: 86550 | C19: 1000 | D19: 5850 | E19: 9850.92 | F19: 1791.0184 | G19: 3000 | H19: 92.7 | I19: 94434.6384
A20: HD FILM HDT6 / F5001 | B20: 88850 | C20: 1000 | D20: 6400 | E20: 10067.22 | F20: 1830.3444 | G20: 3000 | H20: 92.7 | I20: 96440.2644
A21: PIPE P5200UV | B21: 91750 | C21: 1000 | D21: 6700 | E21: 10388.58 | F21: 1888.7716 | G21: 3000 | H21: 92.7 | I21: 99420.0516
A22: IM M 5018L/M 5025L/M5818 | B22: 86900 | C22: 1000 | D22: 5850 | E22: 9894.18 | F22: 1798.8836 | G22: 3000 | H22: 92.7 | I22: 94835.7636
A23: RAF HD T10 / HD T10S | B23: 87450 | C23: 1000 | D23: 5950 | E23: 9949.8 | F23: 1808.996 | G23: 3000 | H23: 92.7 | I23: 95351.496
A24: PIPE P 5300 | B24: 93200 | C24: 1000 | D24: 6750 | E24: 10561.62 | F24: 1920.2324 | G24: 3000 | H24: 92.7 | I24: 101024.5524
A25: PIPE P5200(P.E-63) | B25: 90250 | C25: 1000 | D25: 6700 | E25: 10203.18 | F25: 1855.0636 | G25: 3000 | H25: 92.7 | I25: 97700.9436
A26: HD T9C | B26: 82950 | C26: 0 | D26: 1850 | E26: 10023.96 | F26: 1822.4792 | G26: 3000 | H26: 92.7 | I26: 96039.1392
A27: OG | B27: 81950 | C27: 0 | D27: 1850 | E27: 9900.36 | F27: 1800.0072 | G27: 3000 | H27: 92.7 | I27: 94893.0672
A28: PP
A29: FILM F 110 | B29: 90300 | C29: 1000 | D29: 5800 | E29: =+(B29-C29-D29)*0.1236 -> 10320.6 | F29: =+(B29-C29-D29+E29)*0.02 -> 1876.412 | G29: 3000 | H29: =+G29*0.0309 -> 92.7 | I29: =+B29-C29-D29+E29+F29+G29+H29 -> 98789.712
A30: HPIM M 103 | B30: 90100 | C30: 1000 | D30: 6600 | E30: 10197 | F30: 1853.94 | G30: 3000 | H30: 92.7 | I30: 97643.64
A31: HPIM M 110 | B31: 88750 | C31: 1000 | D31: 5700 | E31: 10141.38 | F31: 1843.8276 | G31: 3000 | H31: 92.7 | I31: 97127.9076
A32: TF T 103 / T 105N | B32: 90850 | C32: 1000 | D32: 5800 | E32: 10388.58 | F32: 1888.7716 | G32: 3000 | H32: 92.7 | I32: 99420.0516
A33: RAFFIA R 103 | B33: 94650 | C33: 1000 | D33: 6650 | E33: 10753.2 | F33: 1955.064 | G33: 3000 | H33: 92.7 | I33: 102800.964
A34: BOPP F 103 / F 103S | B34: 91050 | C34: 1000 | D34: 6000 | E34: 10388.58 | F34: 1888.7716 | G34: 3000 | H34: 92.7 | I34: 99420.0516
A35: PP M 108/ M106 | B35: 88650 | C35: 1000 | D35: 6050 | E35: 10085.76 | F35: 1833.7152 | G35: 3000 | H35: 92.7 | I35: 96612.1752
A36: PP F135 / E125 | B36: 90650 | C36: 1000 | D36: 6100 | E36: 10326.78 | F36: 1877.5356 | G36: 3000 | H36: 92.7 | I36: 98847.0156
A37: PP HP OG | B37: 83750 | C37: 0 | D37: 0 | E37: 10351.5 | F37: 1882.03 | G37: 3000 | H37: 92.7 | I37: 99076.23
A38: PP PS | B38: 79750 | C38: 0 | D38: 0 | E38: 9857.1 | F38: 1792.142 | G38: 3000 | H38: 92.7 | I38: 94491.942
A39: PP WS | B39: 77750 | C39: 0 | D39: 0 | E39: 9609.9 | F39: 1747.198 | G39: 3000 | H39: 92.7 | I39: 92199.798
A40: PP CP/RCP
A41: PPCP M 311T | B41: 96600 | C41: 1000 | D41: 6950 | E41: =+(B41-C41-D41)*0.1236 -> 10957.14 | F41: =+(B41-C41-D41+E41)*0.02 -> 1992.1428 | G41: 3000 | H41: =+G41*0.0309 -> 92.7 | I41: =+B41-C41-D41+E41+F41+G41+H41 -> 104691.9828
A42: PPCP M 340 / M365 | B42: 94300 | C42: 1000 | D42: 6400 | E42: 10740.84 | F42: 1952.8168 | G42: 3000 | H42: 92.7 | I42: 102686.3568
A43: PP CP M 310 | B43: 95000 | C43: 1000 | D43: 6350 | E43: 10833.54 | F43: 1969.6708 | G43: 3000 | H43: 92.7 | I43: 103545.9108
A44: PP CP M 312 | B44: 93100 | C44: 1000 | D44: 6700 | E44: 10555.44 | F44: 1919.1088 | G44: 3000 | H44: 92.7 | I44: 100967.2488
A45: PP CP M 304 / M 325 | B45: 93050 | C45: 1000 | D45: 6700 | E45: 10549.26 | F45: 1917.9852 | G45: 3000 | H45: 92.7 | I45: 100909.9452
A46: PP CP M 307 / M 315 | B46: 92550 | C46: 1000 | D46: 6750 | E46: 10481.28 | F46: 1905.6256 | G46: 3000 | H46: 92.7 | I46: 100279.6056
A47: PP RCP B 200 | B47: 92400 | C47: 1000 | D47: 6500 | E47: 10493.64 | F47: 1907.8728 | G47: 3000 | H47: 92.7 | I47: 100394.2128
A48: PP RCP B202S | B48: 95400 | C48: 1000 | D48: 3050 | E48: 11290.86 | F48: 2052.8172 | G48: 3000 | H48: 92.7 | I48: 107786.3772
A49: PP RCP M212S | B49: 94600 | C49: 1000 | D49: 6600 | E49: 10753.2 | F49: 1955.064 | G49: 3000 | H49: 92.7 | I49: 102800.964
A50: LLDPE
A51: FILM 71601D | B51: 89950 | C51: 1000 | D51: 7300 | E51: =+(B51-C51-D51)*0.1236 -> 10091.94 | F51: =+(B51-C51-D51+E51)*0.02 -> 1834.8388 | G51: 3000 | H51: =+G51*0.0309 -> 92.7 | I51: =+B51-C51-D51+E51+F51+G51+H51 -> 96669.4788
A52: FILM 71501S,71601W | B52: 89400 | C52: 1000 | D52: 7750 | E52: 9968.34 | F52: 1812.3668 | G52: 3000 | H52: 92.7 | I52: 95523.4068
A53: FILM 71602 S / W | B53: 89400 | C53: 1000 | D53: 7750 | E53: 9968.34 | F53: 1812.3668 | G53: 3000 | H53: 92.7 | I53: 95523.4068
A54: ROTO 73005 T/73204 T | B54: 90250 | C54: 1000 | D54: 6150 | E54: 10271.16 | F54: 1867.4232 | G54: 3000 | H54: 92.7 | I54: 98331.2832
A55: ROTO 73005 TU | B55: 91750 | C55: 1000 | D55: 6150 | E55: 10456.56 | F55: 1901.1312 | G55: 3000 | H55: 92.7 | I55: 100050.3912
A56: EC 72307 E | B56: 91450 | C56: 1000 | D56: 6500 | E56: 10376.22 | F56: 1886.5244 | G56: 3000 | H56: 92.7 | I56: 99305.4444
A57: LLT - 12 | B57: 90950 | C57: 1000 | D57: 6500 | E57: =+(B57-C57-D57)*0.1236 -> 10314.42 | F57: 1875.2884 | G57: 3000 | H57: =+G57*0.0309 -> 92.7 | I57: 98732.4084
A58: OG | B58: 85100 | C58: 0 | D58: 1900 | E58: 10283.52 | F58: 1869.6704 | G58: 3000 | H58: 92.7 | I58: 98445.8904
A59: POST SALES QUANTITY DISCOUNT AS APPLICABLE
A60: QTY. MT FOR HD / LL | B60: >= 10 | C60: >=15 | D60: >=30 | E60: >=60 | F60: >= 100 | G60: >= 200 | H60: >= 400
A61: HDPE/LLDPE | B61: 300/- | C61: 300/- | D61: 400/- | E61: 450/- | F61: 550/- | G61: 650/- | H61: 750/-
A62: QTY. MT FOR PP | B62: >=15 | C62: >=30 | D62: >=60 | E62: >=100 | F62: >=200 | G62: >=400
A63: PP | B63: 300/- | C63: 400/- | D63: 450/- | E63: 550/- | F63: 650/- | G63: 750/-
A64: · FOR CREDIT PURCHASE INTREST FREE CREDIT WILL BE 14 DAYS FROM THE DATE OF INVOICE. AN EPI
A65: RS. 70 / MT PER DAY FOR EX-PLANT
A66: · Trade Discount of Rs. 4000 PMT applicable on R103 - to be adjusted pre-exice basis on Ex-plant sales only.
A67: · Trade Discount of Rs. 3000 PMT applicable on R5801 - to be adjusted pre-exice basis on Ex-plant sales only.
A68: · Trade Discount of Rs. 2000 PMT applicable on B5500 - to be adjusted pre-exice basis on Ex-plant sales only.
A69: · NON PRIME GRADE RS.800/MT LESS THAN THE BASIC PRIME GRADE.
A70: · CHEQUE RETURN PENALTY RS.1000/-PER INSTRUMENT.
A71: · UNLOADING & VARAI CHARGES TO BE BORNE BY THE CUSTOMER.
A72: · “C” FORM REQUIRED IN ADVANCE.
A73: · QUANTITY DISCOUNT WOULD NOT BE APPLICABLE ON COMBINATION OF HDPE AND LLDPE GRADES.
A74: · PRICE MAY CHANGE WITHOUT ANY PRIOR NOTICE. PRICE PREVAILING AT THE TIME OF DISPATCH WILL APPLY.
A75: REGARDS
A76: HITESH SHAH - 9820106078
A77: GIRISH SHAH - 9320949656

Sheet MAHA(O.V.)
A1: GANPATI PETROCHEMICALS
A2: Consigment Stockist of : HALDIA PETROCHEMICALS LTD.
A3: 152,Sanjay Bldg. No. 6,Mittal Ind.Estate,Andheri Kurla Road,Marol,Andheri(East),MUMBAI-400 059.
A4: Tel. 28509801 / 28517451 / 32460637 Telefax. 28509802 / E- MAIL ganpetro@vsnl.com
A5: HDPE / PP / LLDPE PRICES EX-HALDIA PETROCHEMICALS LTD. PLANT FOR MAHARATRA(O.V.)
A6: Bhivandi W.H. Add :- Godown No. 20,Thakkar Compound,Valgaon,Anjur Rd,Bhivandi,Dist. Thane. TEL:- 09324038864
A7: HDPE, LLDPE & PP PRICE W.E.F. DT. 09.05.2013
A8: GRADE | B8: BASIC | C8: LESS. | D8: LESS. | E8: ADD | F8: ADD CST | G8: CASH AMT
A9: HDPE | C9: C.D. | D9: LOC.SUB | E9: 0.1236 | F9: 0.02 | G9: PMT
A10: IM 6007L / M 5005L | B10: 88050 | C10: 1000 | D10: 5950 | E10: =+(B10-C10-D10)*0.1236 -> 10023.96 | F10: =+(B10-C10-D10+E10)*0.02 -> 1822.4792 | G10: =+B10-C10-D10+E10+F10 -> 92946.4392 | I10: TRANS.CHARGES PMT.
A11: IM( 7MFI) M 6007LU | B11: 89550 | C11: 1000 | D11: 5950 | E11: =+(B11-C11-D11)*0.1236 -> 10209.36 | F11: =+(B11-C11-D11+E11)*0.02 -> 1856.1872 | G11: =+B11-C11-D11+E11+F11 -> 94665.5472
A12: IM( 4.5 MFI ) M 5002L | B12: 87550 | C12: 1000 | D12: 5950 | E12: 9962.16 | F12: 1811.2432 | G12: 92373.4032
A13: HD BM B 6401 | B13: 87000 | C13: 1000 | D13: 6000 | E13: 9888 | F13: 1797.76 | G13: 91685.76 | H13: LOCATIONS | I13: FREIGHT | J13: ADD S.T.
A14: HD BM E 5201 | B14: 88500 | C14: 1000 | D14: 6000 | E14: 10073.4 | F14: 1831.468 | G14: 93404.868 | H14: **T.D. | I14: RS/MT. | J14: 0.0309
A15: HD BM E5201S | B15: 87500 | C15: 1000 | D15: 6000 | E15: 9949.8 | F15: 1808.996 | G15: 92258.796
A16: MBM B 5500 | B16: 90200 | C16: 1000 | D16: 6150 | E16: 10264.98 | F16: 1866.2996 | G16: 95181.2796
A17: HM FILM F 5600/5400 | B17: 88950 | C17: 1000 | D17: 6050 | E17: 10122.84 | F17: 1840.4568 | G17: 93863.2968 | H17: AHMEDNAGAR-5 | I17: 2913 | J17: =+I17*0.0309 -> 90.0117
A18: RAF/MFIL R5801 | B18: 89850 | C18: 1000 | D18: 5850 | E18: 10258.8 | F18: 1865.176 | G18: 95123.976
A19: RAF/MFIL HD T9 | B19: 86550 | C19: 1000 | D19: 5850 | E19: 9850.92 | F19: 1791.0184 | G19: 91341.9384 | H19: THANE - 5 | I19: 3098 | J19: =+I19*0.0309 -> 95.7282
A20: HD FILM HDT6 / F5001 | B20: 88850 | C20: 1000 | D20: 6400 | E20: 10067.22 | F20: 1830.3444 | G20: 93347.5644 | H20: ALIBAUGH - 5 | I20: 3491 | J20: =+I20*0.0309 -> 107.8719
A21: PIPE P5200UV | B21: 91750 | C21: 1000 | D21: 6700 | E21: 10388.58 | F21: 1888.7716 | G21: 96327.3516
A22: IM M 5018L/M 5025L/M5818 | B22: 86900 | C22: 1000 | D22: 5850 | E22: 9894.18 | F22: 1798.8836 | G22: 91743.0636 | H22: GRT.MUMBAI -5 | I22: 3153 | J22: =+I22*0.0309 -> 97.4277
A23: RAF HD T10 / HD T10S | B23: 87450 | C23: 1000 | D23: 5950 | E23: 9949.8 | F23: 1808.996 | G23: 92258.796 | H23: IGATPURI - 5 | I23: 2802 | J23: =+I23*0.0309 -> 86.5818
A24: PIPE P 5300 | B24: 93200 | C24: 1000 | D24: 6750 | E24: 10561.62 | F24: 1920.2324 | G24: 97931.8524 | H24: KALYAN - 5 | I24: 3001 | J24: =+I24*0.0309 -> 92.7309
A25: PIPE P5200(P.E-63) | B25: 90250 | C25: 1000 | D25: 6700 | E25: 10203.18 | F25: 1855.0636 | G25: 94608.2436 | H25: VASAI | I25: 3099 | J25: =+I25*0.0309 -> 95.7591
A26: HD T9C | B26: 82950 | C26: 0 | D26: 1850 | E26: 10023.96 | F26: 1822.4792 | G26: 92946.4392 | H26: KHOPOLI - 5 | I26: 3419 | J26: =+I26*0.0309 -> 105.6471
A27: OG | B27: 81950 | C27: 0 | D27: 1850 | E27: 9900.36 | F27: 1800.0072 | G27: 91800.3672 | H27: BHIWANDI - 5 | I27: 3000 | J27: 92.7
A28: PP | H28: LONAVALA - 6 | I28: 3168 | J28: 97.8912
A29: FILM F 110 | B29: 90300 | C29: 1000 | D29: 5800 | E29: =+(B29-C29-D29)*0.1236 -> 10320.6 | F29: =+(B29-C29-D29+E29)*0.02 -> 1876.412 | G29: 95697.012 | H29: MURBAD - 5 | I29: 3097 | J29: 95.6973
A30: HPIM M 103 | B30: 90100 | C30: 1000 | D30: 6600 | E30: 10197 | F30: 1853.94 | G30: 94550.94 | H30: PUNE - 5 | I30: 3079 | J30: 95.1411
A31: HPIM M 110 | B31: 88750 | C31: 1000 | D31: 5700 | E31: 10141.38 | F31: 1843.8276 | G31: 94035.2076 | H31: NAGHOTHANE-5 | I31: 3209 | J31: 99.1581
A32: TF T 103 / T 105N | B32: 90850 | C32: 1000 | D32: 5800 | E32: 10388.58 | F32: 1888.7716 | G32: 96327.3516 | H32: NASIK - 5 | I32: 2774 | J32: 85.7166
A33: RAFFIA R 103 | B33: 94650 | C33: 1000 | D33: 6650 | E33: 10753.2 | F33: 1955.064 | G33: 99708.264 | H33: SINNAR-5 | I33: 2797 | J33: 86.4273
A34: BOPP F 103 / F 103S | B34: 91050 | C34: 1000 | D34: 6000 | E34: 10388.58 | F34: 1888.7716 | G34: 96327.3516 | H34: MALEGAON-5 | I34: 3030 | J34: 93.627
A35: PP M 108/ M106 | B35: 88650 | C35: 1000 | D35: 6050 | E35: 10085.76 | F35: 1833.7152 | G35: 93519.4752
A36: PP F135 / E125 | B36: 90650 | C36: 1000 | D36: 6100 | E36: 10326.78 | F36: 1877.5356 | G36: 95754.3156
A37: PP HP OG | B37: 83750 | C37: 0 | D37: 0 | E37: 10351.5 | F37: 1882.03 | G37: 95983.53 | H37: NEW BOMBAY- 5 | I37: 3153 | J37: =+I37*0.0309 -> 97.4277
A38: PP PS | B38: 79750 | C38: 0 | D38: 0 | E38: 9857.1 | F38: 1792.142 | G38: 91399.242 | H38: PALGHAR - 5 | I38: 3203 | J38: =+I38*0.0309 -> 98.9727
A39: PP WS | B39: 77750 | C39: 0 | D39: 0 | E39: 9609.9 | F39: 1747.198 | G39: 89107.098 | H39: DHULIA - 5 | I39: 2744 | J39: =+I39*0.0309 -> 84.7896
A40: PP CP/RCP | E40: =(B40-C40-D40)*16% -> 0 | G40: =(B40-C40-D40)*16%+(B40-C40-D40) -> 0 | H40: *T.D.=TRANSIT DAYS
A41: PPCP M 311T | B41: 96600 | C41: 1000 | D41: 6950 | E41: =+(B41-C41-D41)*0.1236 -> 10957.14 | F41: =+(B41-C41-D41+E41)*0.02 -> 1992.1428 | G41: 101599.2828
A42: PPCP M 340 / M365 | B42: 94300 | C42: 1000 | D42: 6400 | E42: 10740.84 | F42: 1952.8168 | G42: 99593.6568
A43: PP CP M 310 | B43: 95000 | C43: 1000 | D43: 6350 | E43: 10833.54 | F43: 1969.6708 | G43: 100453.2108
A44: PP CP M 312 | B44: 93100 | C44: 1000 | D44: 6700 | E44: 10555.44 | F44: 1919.1088 | G44: 97874.5488
A45: PP CP M 304 / M 325 | B45: 93050 | C45: 1000 | D45: 6700 | E45: 10549.26 | F45: 1917.9852 | G45: 97817.2452
A46: PP CP M 307 / M 315 | B46: 92550 | C46: 1000 | D46: 6750 | E46: 10481.28 | F46: 1905.6256 | G46: 97186.9056
A47: PP RCP B 200 | B47: 92400 | C47: 1000 | D47: 6500 | E47: 10493.64 | F47: 1907.8728 | G47: 97301.5128
A48: PP RCP B202S | B48: 95400 | C48: 1000 | D48: 3050 | E48: 11290.86 | F48: 2052.8172 | G48: 104693.6772
A49: PP RCP M212S | B49: 94600 | C49: 1000 | D49: 6600 | E49: 10753.2 | F49: 1955.064 | G49: 99708.264
A50: LLDPE
A51: FILM 71601D | B51: 89950 | C51: 1000 | D51: 7300 | E51: =+(B51-C51-D51)*0.1236 -> 10091.94 | F51: =+(B51-C51-D51+E51)*0.02 -> 1834.8388 | G51: 93576.7788
A52: FILM 71501S,71601W | B52: 89400 | C52: 1000 | D52: 7750 | E52: 9968.34 | F52: 1812.3668 | G52: 92430.7068
A53: FILM 71602 S / W | B53: 89400 | C53: 1000 | D53: 7750 | E53: 9968.34 | F53: 1812.3668 | G53: 92430.7068
A54: ROTO 73005 T/73204 T | B54: 90250 | C54: 1000 | D54: 6150 | E54: 10271.16 | F54: 1867.4232 | G54: 95238.5832
A55: ROTO 73005 TU | B55: 91750 | C55: 1000 | D55: 6150 | E55: 10456.56 | F55: 1901.1312 | G55: 96957.6912
A56: EC 72307 E | B56: 91450 | C56: 1000 | D56: 6500 | E56: 10376.22 | F56: 1886.5244 | G56: 96212.7444
A57: LLT - 12 | B57: 90950 | C57: 1000 | D57: 6500 | E57: =+(B57-C57-D57)*0.1236 -> 10314.42 | F57: 1875.2884 | G57: 95639.7084
A58: OG | B58: 85100 | C58: 0 | D58: 1900 | E58: 10283.52 | F58: 1869.6704 | G58: 95353.1904
A59: POST SALES QUANTITY DISCOUNT AS APPLICABLE
A60: QTY. MT FOR HD / LL | B60: >= 10 | C60: >=15 | D60: >=30 | E60: >=60 | F60: >= 100 | G60: >= 200 | H60: >= 400
A61: HDPE/LLDPE | B61: 300/- | C61: 300/- | D61: 400/- | E61: 450/- | F61: 550/- | G61: 650/- | H61: 750/-
A62: QTY. MT FOR PP | B62: >=15 | C62: >=30 | D62: >=60 | E62: >=100 | F62: >=200 | G62: >=400
A63: PP | B63: 300/- | C63: 400/- | D63: 450/- | E63: 550/- | F63: 650/- | G63: 750/-
A64: · FOR CREDIT PURCHASE INTREST FREE CREDIT WILL BE 14 DAYS FROM THE DATE OF INVOICE. AN EPI
A65: RS. 70 / MT PER DAY FOR EX-PLANT
A66: · Trade Discount of Rs. 4000 PMT applicable on R103 - to be adjusted pre-exice basis on Ex-plant sales only.
A67: · Trade Discount of Rs. 3000 PMT applicable on R5801 - to be adjusted pre-exice basis on Ex-plant sales only.
A68: · Trade Discount of Rs. 2000 PMT applicable on B5500 - to be adjusted pre-exice basis on Ex-plant sales only.
A69: · NON PRIME GRADE RS.800/MT LESS THAN THE BASIC PRIME GRADE.
A70: · CHEQUE RETURN PENALTY RS.1000/-PER INSTRUMENT.
A71: · UNLOADING & VARAI CHARGES TO BE BORNE BY THE CUSTOMER.
A72: · “C” FORM REQUIRED IN ADVANCE.
A73: · QUANTITY DISCOUNT WOULD NOT BE APPLICABLE ON COMBINATION OF HDPE AND LLDPE GRADES.
A74: · PRICE MAY CHANGE WITHOUT ANY PRIOR NOTICE. PRICE PREVAILING AT THE TIME OF DISPATCH WILL APPLY.
A75: REGARDS
A76: HITESH SHAH - 9820106078
A77: GIRISH SHAH - 9320949656

Sheet MAHA(VIDH)
A1: GANPATI PETROCHEMICALS
A2: Consigment Stockist of : HALDIA PETROCHEMICALS LTD.
A3: 152,Sanjay Bldg. No. 6,Mittal Ind.Estate,Andheri Kurla Road,Marol,Andheri(East),MUMBAI-400 059.
A4: Tel. 28509801 / 28517451 / 32460637 Telefax. 28509802 / E- MAIL ganpetro@vsnl.com
A5: HDPE / PP / LLDPE PRICES EX-HALDIA PETROCHEMICALS LTD. PLANT FOR MAHARASTRA(vidharbh)
A6: Bhivandi W.H. Add :- Godown No. 20,Thakkar Compound,Valgaon,Anjur Rd,Bhivandi,Dist. Thane. TEL:- 09324038864
A7: HDPE, LLDPE & PP PRICE W.E.F. DT. 09.05.2013
A8: GRADE | B8: BASIC | C8: LESS. | D8: LESS. | E8: ADD | F8: ADD CST | G8: CASH AMT
A9: HDPE | C9: C.D. | D9: LOC.SUB | E9: 0.1236 | F9: 0.02 | G9: PMT
A10: IM 6007L / M 5005L | B10: 88050 | C10: 1000 | D10: 3450 | E10: =+(B10-C10-D10)*0.1236 -> 10332.96 | F10: =+(B10-C10-D10+E10)*0.02 -> 1878.6592 | G10: =+B10-C10-D10+E10+F10 -> 95811.6192 | I10: TRANS.CHARGES PMT.
A11: IM( 7MFI) M 6007LU | B11: 89550 | C11: 1000 | D11: 3450 | E11: =+(B11-C11-D11)*0.1236 -> 10518.36 | F11: =+(B11-C11-D11+E11)*0.02 -> 1912.3672 | G11: =+B11-C11-D11+E11+F11 -> 97530.7272
A12: IM( 4.5 MFI ) M 5002L | B12: 87550 | C12: 1000 | D12: 3450 | E12: 10271.16 | F12: 1867.4232 | G12: 95238.5832
A13: HD BM B 6401 | B13: 87000 | C13: 1000 | D13: 3450 | E13: 10203.18 | F13: 1855.0636 | G13: 94608.2436 | H13: LOCATIONS | I13: FREIGHT | J13: ADD S.T.
A14: HD BM E 5201 | B14: 88500 | C14: 1000 | D14: 3450 | E14: 10388.58 | F14: 1888.7716 | G14: 96327.3516 | H14: **T.D. | I14: RS/MT. | J14: 0.0309
A15: HD BM E5201S | B15: 87500 | C15: 1000 | D15: 3450 | E15: 10264.98 | F15: 1866.2996 | G15: 95181.2796
A16: MBM B 5500 | B16: 90200 | C16: 1000 | D16: 3650 | E16: 10573.98 | F16: 1922.4796 | G16: 98046.4596
A17: HM FILM F 5600/5400 | B17: 88950 | C17: 1000 | D17: 3650 | E17: 10419.48 | F17: 1894.3896 | G17: 96613.8696 | H17: NAGPUR-3 | I17: 1961 | J17: =+I17*0.0309 -> 60.5949
A18: RAF/MFIL R5801 | B18: 89850 | C18: 1000 | D18: 3250 | E18: 10580.16 | F18: 1923.6032 | G18: 98103.7632
A19: RAF/MFIL HD T9 | B19: 86550 | C19: 1000 | D19: 3250 | E19: 10172.28 | F19: 1849.4456 | G19: 94321.7256 | H19: AMRAVATI-4 | I19: 2513 | J19: =+I19*0.0309 -> 77.6517
A20: HD FILM HDT6 / F5001 | B20: 88850 | C20: 1000 | D20: 4000 | E20: 10363.86 | F20: 1884.2772 | G20: 96098.1372
A21: PIPE P5200UV | B21: 91750 | C21: 1000 | D21: 4150 | E21: 10703.76 | F21: 1946.0752 | G21: 99249.8352 | H21: WARDHA-3 | I21: 2091 | J21: =+I21*0.0309 -> 64.6119
A22: IM M 5018L/M 5025L/M5818 | B22: 86900 | C22: 1000 | D22: 3550 | E22: 10178.46 | F22: 1850.5692 | G22: 94379.0292
A23: RAF HD T10 / HD T10S | B23: 87450 | C23: 1000 | D23: 3650 | E23: 10234.08 | F23: 1860.6816 | G23: 94894.7616
A24: PIPE P 5300 | B24: 93200 | C24: 1000 | D24: 4250 | E24: 10870.62 | F24: 1976.4124 | G24: 100797.0324
A25: PIPE P5200(P.E-63) | B25: 90250 | C25: 1000 | D25: 4150 | E25: 10518.36 | F25: 1912.3672 | G25: 97530.7272
A26: HD T9C | B26: 82950 | C26: 0 | D26: 1850 | E26: 10023.96 | F26: 1822.4792 | G26: 92946.4392
A27: OG | B27: 81950 | C27: 0 | D27: 1850 | E27: 9900.36 | F27: 1800.0072 | G27: 91800.3672
A28: PP
A29: FILM F 110 | B29: 90300 | C29: 1000 | D29: 2600 | E29: =+(B29-C29-D29)*0.1236 -> 10716.12 | F29: =+(B29-C29-D29+E29)*0.02 -> 1948.3224 | G29: 99364.4424 | H29: *T.D.=TRANSIT DAYS
A30: HPIM M 103 | B30: 90100 | C30: 1000 | D30: 4100 | E30: 10506 | F30: 1910.12 | G30: 97416.12
A31: HPIM M 110 | B31: 88750 | C31: 1000 | D31: =+[1]PP!B13 -> 2300 | E31: 10561.62 | F31: 1920.2324 | G31: 97931.8524
A32: TF T 103 / T 105N | B32: 90850 | C32: 1000 | D32: 3000 | E32: 10734.66 | F32: 1951.6932 | G32: 99536.3532
A33: RAFFIA R 103 | B33: 94650 | C33: 1000 | D33: 4150 | E33: 11062.2 | F33: 2011.244 | G33: 102573.444
A34: BOPP F 103 / F 103S | B34: 91050 | C34: 1000 | D34: =+[1]PP!F13 -> 3550 | E34: 10691.4 | F34: 1943.828 | G34: 99135.228
A35: PP M 108/ M106 | B35: 88650 | C35: 1000 | D35: 2650 | E35: 10506 | F35: 1910.12 | G35: 97416.12
A36: PP F135 / E125 | B36: 90650 | C36: 1000 | D36: 3500 | E36: 10648.14 | F36: 1935.9628 | G36: 98734.1028
A37: PP HP OG | B37: 83750 | C37: 0 | D37: 0 | E37: 10351.5 | F37: 1882.03 | G37: 95983.53
A38: PP PS | B38: 79750 | C38: 0 | D38: 0 | E38: 9857.1 | F38: 1792.142 | G38: 91399.242
A39: PP WS | B39: 77750 | C39: 0 | D39: 0 | E39: 9609.9 | F39: 1747.198 | G39: 89107.098
A40: PP CP/RCP | E40: =(B40-C40-D40)*16% -> 0 | G40: =(B40-C40-D40)*16%+(B40-C40-D40) -> 0
A41: PPCP M 311T | B41: 96600 | C41: 1000 | D41: 4400 | E41: =+(B41-C41-D41)*0.1236 -> 11272.32 | F41: =+(B41-C41-D41+E41)*0.02 -> 2049.4464 | G41: 104521.7664
A42: PPCP M 340 / M365 | B42: 94300 | C42: 1000 | D42: 3950 | E42: 11043.66 | F42: 2007.8732 | G42: 102401.5332
A43: PP CP M 310 | B43: 95000 | C43: 1000 | D43: =+[1]PP!P13 -> 3800 | E43: 11148.72 | F43: 2026.9744 | G43: 103375.6944
A44: PP CP M 312 | B44: 93100 | C44: 1000 | D44: 4150 | E44: 10870.62 | F44: 1976.4124 | G44: 100797.0324
A45: PP CP M 304 / M 325 | B45: 93050 | C45: 1000 | D45: 4150 | E45: 10864.44 | F45: 1975.2888 | G45: 100739.7288
A46: PP CP M 307 / M 315 | B46: 92550 | C46: 1000 | D46: 4200 | E46: 10796.46 | F46: 1962.9292 | G46: 100109.3892
A47: PP RCP B 200 | B47: 92400 | C47: 1000 | D47: 4000 | E47: 10802.64 | F47: 1964.0528 | G47: 100166.6928
A48: PP RCP B202S | B48: 95400 | C48: 1000 | D48: 3750 | E48: 11204.34 | F48: 2037.0868 | G48: 103891.4268
A49: PP RCP M212S | B49: 94600 | C49: 1000 | D49: =+[1]PP!K13 -> 4200 | E49: 11049.84 | F49: 2008.9968 | G49: 102458.8368
A50: LLDPE
A51: FILM 71601D | B51: 89950 | C51: 1000 | D51: 4750 | E51: =+(B51-C51-D51)*0.1236 -> 10407.12 | F51: =+(B51-C51-D51+E51)*0.02 -> 1892.1424 | G51: 96499.2624
A52: FILM 71501S,71601W | B52: 89400 | C52: 1000 | D52: 5200 | E52: 10283.52 | F52: 1869.6704 | G52: 95353.1904
A53: FILM 71602 S / W | B53: 89400 | C53: 1000 | D53: 5200 | E53: 10283.52 | F53: 1869.6704 | G53: 95353.1904
A54: ROTO 73005 T/73204 T | B54: 90250 | C54: 1000 | D54: 3600 | E54: 10586.34 | F54: 1924.7268 | G54: 98161.0668
A55: ROTO 73005 TU | B55: 91750 | C55: 1000 | D55: 3600 | E55: 10771.74 | F55: 1958.4348 | G55: 99880.1748
A56: EC 72307 E | B56: 91450 | C56: 1000 | D56: 4000 | E56: 10685.22 | F56: 1942.7044 | G56: 99077.9244
A57: LLT - 12 | B57: 90950 | C57: 1000 | D57: 4000 | E57: =+(B57-C57-D57)*0.1236 -> 10623.42 | F57: 1931.4684 | G57: 98504.8884
A58: OG | B58: 85100 | C58: 0 | D58: 1900 | E58: 10283.52 | F58: 1869.6704 | G58: 95353.1904
A59: POST SALES QUANTITY DISCOUNT AS APPLICABLE
A60: QTY. MT FOR HD / LL | B60: >= 10 | C60: >=15 | D60: >=30 | E60: >=60 | F60: >= 100 | G60: >= 200 | H60: >= 400
A61: HDPE/LLDPE | B61: 300/- | C61: 300/- | D61: 400/- | E61: 450/- | F61: 550/- | G61: 650/- | H61: 750/-
A62: QTY. MT FOR PP | B62: >=15 | C62: >=30 | D62: >=60 | E62: >=100 | F62: >=200 | G62: >=400
A63: PP | B63: 300/- | C63: 400/- | D63: 450/- | E63: 550/- | F63: 650/- | G63: 750/-
A64: · FOR CREDIT PURCHASE INTREST FREE CREDIT WILL BE 14 DAYS FROM THE DATE OF INVOICE. AN EPI
A65: RS. 70 / MT PER DAY FOR EX-PLANT
A66: · Trade Discount of Rs. 4000 PMT applicable on R103 - to be adjusted pre-exice basis on Ex-plant sales only.
A67: · Trade Discount of Rs. 3000 PMT applicable on R5801 - to be adjusted pre-exice basis on Ex-plant sales only.
A68: · Trade Discount of Rs. 2000 PMT applicable on B5500 - to be adjusted pre-exice basis on Ex-plant sales only.
A69: · NON PRIME GRADE RS.800/MT LESS THAN THE BASIC PRIME GRADE.
A70: · CHEQUE RETURN PENALTY RS.1000/-PER INSTRUMENT.
A71: · UNLOADING & VARAI CHARGES TO BE BORNE BY THE CUSTOMER.
A72: · “C” FORM REQUIRED IN ADVANCE.
A73: · QUANTITY DISCOUNT WOULD NOT BE APPLICABLE ON COMBINATION OF HDPE AND LLDPE GRADES.
A74: · PRICE MAY CHANGE WITHOUT ANY PRIOR NOTICE. PRICE PREVAILING AT THE TIME OF DISPATCH WILL APPLY.
A75: REGARDS
A76: HITESH SHAH - 9820106078
A77: GIRISH SHAH - 9320949656

Sheet MAHA(KHAN)
A1: GANPATI PETROCHEMICALS
A2: Consigment Stockist of : HALDIA PETROCHEMICALS LTD.
A3: 152,Sanjay Bldg. No. 6,Mittal Ind.Estate,Andheri Kurla Road,Marol,Andheri(East),MUMBAI-400 059.
A4: Tel. 28509801 / 28517451 / 32460637 Telefax. 28509802 / E- MAIL ganpetro@vsnl.com
A5: HDPE / PP / LLDPE PRICES EX-HALDIA PETROCHEMICALS LTD. PLANT FOR MAHARASTRA(khandesh)
A6: Bhivandi W.H. Add :- Godown No. 20,Thakkar Compound,Valgaon,Anjur Rd,Bhivandi,Dist. Thane. TEL:- 09324038864
A7: HDPE, LLDPE & PP PRICE W.E.F. DT. 09.05.2013
A8: GRADE | B8: BASIC | C8: LESS. | D8: LESS. | E8: ADD | F8: ADD CST | G8: CASH AMT
A9: HDPE | C9: C.D. | D9: LOC.SUB | E9: 0.1236 | F9: 0.02 | G9: PMT
A10: IM 6007L / M 5005L | B10: 88050 | C10: 1000 | D10: 4900 | E10: =+(B10-C10-D10)*0.1236 -> 10153.74 | F10: =+(B10-C10-D10+E10)*0.02 -> 1846.0748 | G10: =+B10-C10-D10+E10+F10 -> 94149.8148 | I10: TRANS.CHARGES PMT.
A11: IM( 7MFI) M 6007LU | B11: 89550 | C11: 1000 | D11: 4900 | E11: =+(B11-C11-D11)*0.1236 -> 10339.14 | F11: =+(B11-C11-D11+E11)*0.02 -> 1879.7828 | G11: =+B11-C11-D11+E11+F11 -> 95868.9228
A12: IM( 4.5 MFI ) M 5002L | B12: 87550 | C12: 1000 | D12: 4900 | E12: 10091.94 | F12: 1834.8388 | G12: 93576.7788
A13: HD BM B 6401 | B13: 87000 | C13: 1000 | D13: 4900 | E13: 10023.96 | F13: 1822.4792 | G13: 92946.4392 | H13: LOCATIONS | I13: FREIGHT | J13: ADD S.T.
A14: HD BM E 5201 | B14: 88500 | C14: 1000 | D14: 4900 | E14: 10209.36 | F14: 1856.1872 | G14: 94665.5472 | H14: **T.D. | I14: RS/MT. | J14: 0.0309
A15: HD BM E5201S | B15: 87500 | C15: 1000 | D15: 4900 | E15: 10085.76 | F15: 1833.7152 | G15: 93519.4752
A16: MBM B 5500 | B16: 90200 | C16: 1000 | D16: 5100 | E16: 10394.76 | F16: 1889.8952 | G16: 96384.6552
A17: HM FILM F 5600/5400 | B17: 88950 | C17: 1000 | D17: 5050 | E17: 10246.44 | F17: 1862.9288 | G17: 95009.3688 | H17: AURANGABAD-4 | I17: 2740 | J17: =+I17*0.0309 -> 84.666
A18: RAF/MFIL R5801 | B18: 89850 | C18: 1000 | D18: 4700 | E18: 10400.94 | F18: 1891.0188 | G18: 96441.9588
A19: RAF/MFIL HD T9 | B19: 86550 | C19: 1000 | D19: 4700 | E19: 9993.06 | F19: 1816.8612 | G19: 92659.9212 | H19: JALNA-4 | I19: 2774 | J19: =+I19*0.0309 -> 85.7166
A20: HD FILM HDT6 / F5001 | B20: 88850 | C20: 1000 | D20: 5400 | E20: 10190.82 | F20: 1852.8164 | G20: 94493.6364 | H20: JALGAON-4 | I20: 2525 | J20: =+I20*0.0309 -> 78.0225
A21: PIPE P5200UV | B21: 91750 | C21: 1000 | D21: 5650 | E21: 10518.36 | F21: 1912.3672 | G21: 97530.7272 | H21: LATUR-5 | I21: 2854 | J21: =+I21*0.0309 -> 88.1886
A22: IM M 5018L/M 5025L/M5818 | B22: 86900 | C22: 1000 | D22: 4850 | E22: 10017.78 | F22: 1821.3556 | G22: 92889.1356
A23: RAF HD T10 / HD T10S | B23: 87450 | C23: 1000 | D23: 4950 | E23: 10073.4 | F23: 1831.468 | G23: 93404.868 | H23: NANDED-4 | I23: 2924 | J23: =+I23*0.0309 -> 90.3516
A24: PIPE P 5300 | B24: 93200 | C24: 1000 | D24: 5700 | E24: 10691.4 | F24: 1943.828 | G24: 99135.228
A25: PIPE P5200(P.E-63) | B25: 90250 | C25: 1000 | D25: 5650 | E25: 10332.96 | F25: 1878.6592 | G25: 95811.6192 | H25: CHALISGAON | I25: 2560 | J25: =+I25*0.0309 -> 79.104
A26: HD T9C | B26: 82950 | C26: 0 | D26: 1850 | E26: 10023.96 | F26: 1822.4792 | G26: 92946.4392
A27: OG | B27: 81950 | C27: 0 | D27: 1850 | E27: 9900.36 | F27: 1800.0072 | G27: 91800.3672
A28: PP
A29: FILM F 110 | B29: 90300 | C29: 1000 | D29: 4700 | E29: =+(B29-C29-D29)*0.1236 -> 10456.56 | F29: =+(B29-C29-D29+E29)*0.02 -> 1901.1312 | G29: =+B29-C29-D29+E29+F29 -> 96957.6912 | H29: *T.D.=TRANSIT DAYS
A30: HPIM M 103 | B30: 90100 | C30: 1000 | D30: 5450 | E30: 10339.14 | F30: 1879.7828 | G30: 95868.9228
A31: HPIM M 110 | B31: 88750 | C31: 1000 | D31: 3800 | E31: 10376.22 | F31: 1886.5244 | G31: 96212.7444
A32: TF T 103 / T 105N | B32: 90850 | C32: 1000 | D32: 4700 | E32: 10524.54 | F32: 1913.4908 | G32: 97588.0308
A33: RAFFIA R 103 | B33: 94650 | C33: 1000 | D33: 5500 | E33: 10895.34 | F33: 1980.9068 | G33: 101026.2468
A34: BOPP F 103 / F 103S | B34: 91050 | C34: 1000 | D34: =+[1]PP!F12 -> 4950 | E34: 10518.36 | F34: 1912.3672 | G34: 97530.7272
A35: PP M 108/ M106 | B35: 88650 | C35: 1000 | D35: 4150 | E35: 10320.6 | F35: 1876.412 | G35: 95697.012
A36: PP F135 / E125 | B36: 90650 | C36: 1000 | D36: 5000 | E36: 10462.74 | F36: 1902.2548 | G36: 97014.9948
A37: PP HP OG | B37: 83750 | C37: 0 | D37: 0 | E37: 10351.5 | F37: 1882.03 | G37: 95983.53
A38: PP PS | B38: 79750 | C38: 0 | D38: 0 | E38: 9857.1 | F38: 1792.142 | G38: 91399.242
A39: PP WS | B39: 77750 | C39: 0 | D39: 0 | E39: 9609.9 | F39: 1747.198 | G39: 89107.098
A40: PP CP/RCP | E40: =(B40-C40-D40)*16% -> 0 | G40: =(B40-C40-D40)*16%+(B40-C40-D40) -> 0
A41: PPCP M 311T | B41: 96600 | C41: 1000 | D41: 5850 | E41: =+(B41-C41-D41)*0.1236 -> 11093.1 | F41: =+(B41-C41-D41+E41)*0.02 -> 2016.862 | G41: =+B41-C41-D41+E41+F41 -> 102859.962
A42: PPCP M 340 / M365 | B42: 94300 | C42: 1000 | D42: 5300 | E42: 10876.8 | F42: 1977.536 | G42: 100854.336
A43: PP CP M 310 | B43: 95000 | C43: 1000 | D43: 5300 | E43: 10963.32 | F43: 1993.2664 | G43: 101656.5864
A44: PP CP M 312 | B44: 93100 | C44: 1000 | D44: 5550 | E44: 10697.58 | F44: 1944.9516 | G44: 99192.5316
A45: PP CP M 304 / M 325 | B45: 93050 | C45: 1000 | D45: 5600 | E45: 10685.22 | F45: 1942.7044 | G45: 99077.9244
A46: PP CP M 307 / M 315 | B46: 92550 | C46: 1000 | D46: 5650 | E46: 10617.24 | F46: 1930.3448 | G46: 98447.5848
A47: PP RCP B 200 | B47: 92400 | C47: 1000 | D47: 5400 | E47: 10629.6 | F47: 1932.592 | G47: 98562.192
A48: PP RCP B202S | B48: 95400 | C48: 1000 | D48: 3100 | E48: 11284.68 | F48: 2051.6936 | G48: 104636.3736
A49: PP RCP M212S | B49: 94600 | C49: 1000 | D49: =+[1]PP!K12 -> 5600 | E49: 10876.8 | F49: 1977.536 | G49: 100854.336
A50: LLDPE
A51: FILM 71601D | B51: 89950 | C51: 1000 | D51: 6200 | E51: =+(B51-C51-D51)*0.1236 -> 10227.9 | F51: =+(B51-C51-D51+E51)*0.02 -> 1859.558 | G51: =+B51-C51-D51+E51+F51 -> 94837.458
A52: FILM 71501S,71601W | B52: 89400 | C52: 1000 | D52: 6650 | E52: 10104.3 | F52: 1837.086 | G52: 93691.386
A53: FILM 71602 S / W | B53: 89400 | C53: 1000 | D53: 6650 | E53: 10104.3 | F53: 1837.086 | G53: 93691.386
A54: ROTO 73005 T/73204 T | B54: 90250 | C54: 1000 | D54: 5050 | E54: 10407.12 | F54: 1892.1424 | G54: 96499.2624
A55: ROTO 73005 TU | B55: 91750 | C55: 1000 | D55: 5050 | E55: 10592.52 | F55: 1925.8504 | G55: 98218.3704
A56: EC 72307 E | B56: 91450 | C56: 1000 | D56: 5450 | E56: 10506 | F56: 1910.12 | G56: 97416.12
A57: LLT - 12 | B57: 90950 | C57: 1000 | D57: 5450 | E57: =+(B57-C57-D57)*0.1236 -> 10444.2 | F57: 1898.884 | G57: 96843.084
A58: OG | B58: 85100 | C58: 0 | D58: 1900 | E58: 10283.52 | F58: 1869.6704 | G58: 95353.1904
A59: POST SALES QUANTITY DISCOUNT AS APPLICABLE
A60: QTY. MT FOR HD / LL | B60: >= 10 | C60: >=15 | D60: >=30 | E60: >=60 | F60: >= 100 | G60: >= 200 | H60: >= 400
A61: HDPE/LLDPE | B61: 300/- | C61: 300/- | D61: 400/- | E61: 450/- | F61: 550/- | G61: 650/- | H61: 750/-
A62: QTY. MT FOR PP | B62: >=15 | C62: >=30 | D62: >=60 | E62: >=100 | F62: >=200 | G62: >=400
A63: PP | B63: 300/- | C63: 400/- | D63: 450/- | E63: 550/- | F63: 650/- | G63: 750/-
A64: · FOR CREDIT PURCHASE INTREST FREE CREDIT WILL BE 14 DAYS FROM THE DATE OF INVOICE. AN EPI
A65: RS. 70 / MT PER DAY FOR EX-PLANT
A66: · Trade Discount of Rs. 4000 PMT applicable on R103 - to be adjusted pre-exice basis on Ex-plant sales only.
A67: · Trade Discount of Rs. 3000 PMT applicable on R5801 - to be adjusted pre-exice basis on Ex-plant sales only.
A68: · Trade Discount of Rs. 2000 PMT applicable on B5500 - to be adjusted pre-exice basis on Ex-plant sales only.
A69: · NON PRIME GRADE RS.800/MT LESS THAN THE BASIC PRIME GRADE.
A70: · CHEQUE RETURN PENALTY RS.1000/-PER INSTRUMENT.
A71: · UNLOADING & VARAI CHARGES TO BE BORNE BY THE CUSTOMER.
A72: · “C” FORM REQUIRED IN ADVANCE.
A73: · QUANTITY DISCOUNT WOULD NOT BE APPLICABLE ON COMBINATION OF HDPE AND LLDPE GRADES.
A74: · PRICE MAY CHANGE WITHOUT ANY PRIOR NOTICE. PRICE PREVAILING AT THE TIME OF DISPATCH WILL APPLY.
A75: REGARDS
A76: HITESH SHAH - 9820106078
A77: GIRISH SHAH - 9320949656

Sheet MAHA(SOUTH)
A1: GANPATI PETROCHEMICALS
A2: Consigment Stockist of : HALDIA PETROCHEMICALS LTD.
A3: 152,Sanjay Bldg. No. 6,Mittal Ind.Estate,Andheri Kurla Road,Marol,Andheri(East),MUMBAI-400 059.
A4: Tel. 28509801 / 28517451 / 32460637 Telefax. 28509802 / E- MAIL ganpetro@vsnl.com
A5: HDPE / PP / LLDPE PRICES EX-HALDIA PETROCHEMICALS LTD. PLANT FOR MAHARASTRA(SOUTH)
A6: Bhivandi W.H. Add :- Godown No. 20,Thakkar Compound,Valgaon,Anjur Rd,Bhivandi,Dist. Thane. TEL:- 09324038864
A7: HDPE, LLDPE & PP PRICE W.E.F. DT. 09.05.2013
A8: GRADE | B8: BASIC | C8: LESS. | D8: LESS. | E8: ADD | F8: ADD CST | G8: CASH AMT
A9: HDPE | C9: C.D. | D9: LOC.SUB | E9: 0.1236 | F9: 0.02 | G9: PMT
A10: IM 6007L / M 5005L | B10: 88050 | C10: 1000 | D10: 5700 | E10: =+(B10-C10-D10)*0.1236 -> 10054.86 | F10: =+(B10-C10-D10+E10)*0.02 -> 1828.0972 | G10: =+B10-C10-D10+E10+F10 -> 93232.9572 | I10: TRANS.CHARGES PMT.
A11: IM( 7MFI) M 6007LU | B11: 89550 | C11: 1000 | D11: 5700 | E11: =+(B11-C11-D11)*0.1236 -> 10240.26 | F11: =+(B11-C11-D11+E11)*0.02 -> 1861.8052 | G11: =+B11-C11-D11+E11+F11 -> 94952.0652
A12: IM( 4.5 MFI ) M 5002L | B12: 87550 | C12: 1000 | D12: 5700 | E12: 9993.06 | F12: 1816.8612 | G12: 92659.9212
A13: HD BM B 6401 | B13: 87000 | C13: 1000 | D13: 5750 | E13: 9918.9 | F13: 1803.378 | G13: 91972.278 | H13: LOCATIONS | I13: FREIGHT | J13: ADD S.T.
A14: HD BM E 5201 | B14: 88500 | C14: 1000 | D14: 5750 | E14: 10104.3 | F14: 1837.086 | G14: 93691.386 | H14: **T.D. | I14: RS/MT. | J14: 0.0309
A15: HD BM E5201S | B15: 87500 | C15: 1000 | D15: 5750 | E15: 9980.7 | F15: 1814.614 | G15: 92545.314
A16: MBM B 5500 | B16: 90200 | C16: 1000 | D16: 5950 | E16: 10289.7 | F16: 1870.794 | G16: 95410.494
A17: HM FILM F 5600/5400 | B17: 88950 | C17: 1000 | D17: 5800 | E17: 10153.74 | F17: 1846.0748 | G17: 94149.8148 | H17: SANGLI - 6 | I17: 3066 | J17: =+I17*0.0309 -> 94.7394
A18: RAF/MFIL R5801 | B18: 89850 | C18: 1000 | D18: 5550 | E18: 10295.88 | F18: 1871.9176 | G18: 95467.7976 | H18: SATARA - 5 | I18: 3149 | J18: =+I18*0.0309 -> 97.3041
A19: RAF/MFIL HD T9 | B19: 86550 | C19: 1000 | D19: 5550 | E19: 9888 | F19: 1797.76 | G19: 91685.76 | H19: KOLHAPUR-6 | I19: 3075 | J19: =+I19*0.0309 -> 95.0175
A20: HD FILM HDT6 / F5001 | B20: 88850 | C20: 1000 | D20: 6150 | E20: 10098.12 | F20: 1835.9624 | G20: 93634.0824 | H20: RATNAGIRI - 6 | I20: 3626 | J20: =+I20*0.0309 -> 112.0434
A21: PIPE P5200UV | B21: 91750 | C21: 1000 | D21: 6500 | E21: 10413.3 | F21: 1893.266 | G21: 96556.566
A22: IM M 5018L/M 5025L/M5818 | B22: 86900 | C22: 1000 | D22: 5450 | E22: 9943.62 | F22: 1807.8724 | G22: 92201.4924 | H22: WAI | I22: 3154 | J22: =+I22*0.0309 -> 97.4586
A23: RAF HD T10 / HD T10S | B23: 87450 | C23: 1000 | D23: 5550 | E23: 9999.24 | F23: 1817.9848 | G23: 92717.2248 | H23: SOLAPUR - 6 | I23: 2981 | J23: =+I23*0.0309 -> 92.1129
A24: PIPE P 5300 | B24: 93200 | C24: 1000 | D24: 6550 | E24: 10586.34 | F24: 1924.7268 | G24: 98161.0668
A25: PIPE P5200(P.E-63) | B25: 90250 | C25: 1000 | D25: 6500 | E25: 10227.9 | F25: 1859.558 | G25: 94837.458
A26: HD T9C | B26: 82950 | C26: 0 | D26: 1850 | E26: 10023.96 | F26: 1822.4792 | G26: 92946.4392
A27: OG | B27: 81950 | C27: 0 | D27: 1850 | E27: 9900.36 | F27: 1800.0072 | G27: 91800.3672
A28: PP
A29: FILM F 110 | B29: 90300 | C29: 1000 | D29: 5800 | E29: =+(B29-C29-D29)*0.1236 -> 10320.6 | F29: =+(B29-C29-D29+E29)*0.02 -> 1876.412 | G29: =+B29-C29-D29+E29+F29 -> 95697.012 | H29: *T.D.=TRANSIT DAYS
A30: HPIM M 103 | B30: 90100 | C30: 1000 | D30: 6600 | E30: 10197 | F30: 1853.94 | G30: 94550.94
A31: HPIM M 110 | B31: 88750 | C31: 1000 | D31: 5700 | E31: 10141.38 | F31: 1843.8276 | G31: 94035.2076
A32: TF T 103 / T 105N | B32: 90850 | C32: 1000 | D32: 5800 | E32: 10388.58 | F32: 1888.7716 | G32: 96327.3516
A33: RAFFIA R 103 | B33: 94650 | C33: 1000 | D33: 6650 | E33: 10753.2 | F33: 1955.064 | G33: 99708.264
A34: BOPP F 103 / F 103S | B34: 91050 | C34: 1000 | D34: 6000 | E34: 10388.58 | F34: 1888.7716 | G34: 96327.3516
A35: PP M 108/ M106 | B35: 88650 | C35: 1000 | D35: 6050 | E35: 10085.76 | F35: 1833.7152 | G35: 93519.4752
A36: PP F135 / E125 | B36: 90650 | C36: 1000 | D36: 6100 | E36: 10326.78 | F36: 1877.5356 | G36: 95754.3156
A37: PP HP OG | B37: 83750 | C37: 0 | D37: 0 | E37: 10351.5 | F37: 1882.03 | G37: 95983.53
A38: PP PS | B38: 79750 | C38: 0 | D38: 0 | E38: 9857.1 | F38: 1792.142 | G38: 91399.242
A39: PP WS | B39: 77750 | C39: 0 | D39: 0 | E39: 9609.9 | F39: 1747.198 | G39: 89107.098
A40: PP CP/RCP
A41: PPCP M 311T | B41: 96600 | C41: 1000 | D41: 6950 | E41: =+(B41-C41-D41)*0.1236 -> 10957.14 | F41: =+(B41-C41-D41+E41)*0.02 -> 1992.1428 | G41: =+B41-C41-D41+E41+F41 -> 101599.2828
A42: PPCP M 340 / M365 | B42: 94300 | C42: 1000 | D42: 6400 | E42: 10740.84 | F42: 1952.8168 | G42: 99593.6568
A43: PP CP M 310 | B43: 95000 | C43: 1000 | D43: 6350 | E43: 10833.54 | F43: 1969.6708 | G43: 100453.2108
A44: PP CP M 312 | B44: 93100 | C44: 1000 | D44: 6700 | E44: 10555.44 | F44: 1919.1088 | G44: 97874.5488
A45: PP CP M 304 / M 325 | B45: 93050 | C45: 1000 | D45: 6700 | E45: 10549.26 | F45: 1917.9852 | G45: 97817.2452
A46: PP CP M 307 / M 315 | B46: 92550 | C46: 1000 | D46: 6750 | E46: 10481.28 | F46: 1905.6256 | G46: 97186.9056
A47: PP RCP B 200 | B47: 92400 | C47: 1000 | D47: 6500 | E47: 10493.64 | F47: 1907.8728 | G47: 97301.5128
A48: PP RCP B202S | B48: 95400 | C48: 1000 | D48: 3050 | E48: 11290.86 | F48: 2052.8172 | G48: 104693.6772
A49: PP RCP M212S | B49: 94600 | C49: 1000 | D49: 6600 | E49: 10753.2 | F49: 1955.064 | G49: 99708.264
A50: LLDPE
A51: FILM 71601D | B51: 89950 | C51: 1000 | D51: 6850 | E51: =+(B51-C51-D51)*0.1236 -> 10147.56 | F51: =+(B51-C51-D51+E51)*0.02 -> 1844.9512 | G51: =+B51-C51-D51+E51+F51 -> 94092.5112
A52: FILM 71501S,71601W | B52: 89400 | C52: 1000 | D52: 7300 | E52: 10023.96 | F52: 1822.4792 | G52: 92946.4392
A53: FILM 71602 S / W | B53: 89400 | C53: 1000 | D53: 7300 | E53: 10023.96 | F53: 1822.4792 | G53: 92946.4392
A54: ROTO 73005 T/73204 T | B54: 90250 | C54: 1000 | D54: 5700 | E54: 10326.78 | F54: 1877.5356 | G54: 95754.3156
A55: ROTO 73005 TU | B55: 91750 | C55: 1000 | D55: 5700 | E55: 10512.18 | F55: 1911.2436 | G55: 97473.4236
A56: EC 72307 E | B56: 91450 | C56: 1000 | D56: 6300 | E56: 10400.94 | F56: 1891.0188 | G56: 96441.9588
A57: LLT - 12 | B57: 90950 | C57: 1000 | D57: 6300 | E57: =+(B57-C57-D57)*0.1236 -> 10339.14 | F57: 1879.7828 | G57: 95868.9228
A58: OG | B58: 85100 | C58: 0 | D58: 1900 | E58: 10283.52 | F58: 1869.6704 | G58: 95353.1904
A59: POST SALES QUANTITY DISCOUNT AS APPLICABLE
A60: QTY. MT FOR HD / LL | B60: >= 10 | C60: >=15 | D60: >=30 | E60: >=60 | F60: >= 100 | G60: >= 200 | H60: >= 400
A61: HDPE/LLDPE | B61: 300/- | C61: 300/- | D61: 400/- | E61: 450/- | F61: 550/- | G61: 650/- | H61: 750/-
A62: QTY. MT FOR PP | B62: >=15 | C62: >=30 | D62: >=60 | E62: >=100 | F62: >=200 | G62: >=400
A63: PP | B63: 300/- | C63: 400/- | D63: 450/- | E63: 550/- | F63: 650/- | G63: 750/-
A64: · FOR CREDIT PURCHASE INTREST FREE CREDIT WILL BE 14 DAYS FROM THE DATE OF INVOICE. AN EPI
A65: RS. 70 / MT PER DAY FOR EX-PLANT
A66: · Trade Discount of Rs. 4000 PMT applicable on R103 - to be adjusted pre-exice basis on Ex-plant sales only.
A67: · Trade Discount of Rs. 3000 PMT applicable on R5801 - to be adjusted pre-exice basis on Ex-plant sales only.
A68: · Trade Discount of Rs. 2000 PMT applicable on B5500 - to be adjusted pre-exice basis on Ex-plant sales only.
A69: · NON PRIME GRADE RS.800/MT LESS THAN THE BASIC PRIME GRADE.
A70: · CHEQUE RETURN PENALTY RS.1000/-PER INSTRUMENT.
A71: · UNLOADING & VARAI CHARGES TO BE BORNE BY THE CUSTOMER.
A72: · “C” FORM REQUIRED IN ADVANCE.
A73: · QUANTITY DISCOUNT WOULD NOT BE APPLICABLE ON COMBINATION OF HDPE AND LLDPE GRADES.
A74: · PRICE MAY CHANGE WITHOUT ANY PRIOR NOTICE. PRICE PREVAILING AT THE TIME OF DISPATCH WILL APPLY.
A75: REGARDS
A76: HITESH SHAH - 9820106078
A77: GIRISH SHAH - 9320949656

Sheet STOCK POINT
A1: GANPATI PETROCHEMICALS
A2: Consigment Stockist of : HALDIA PETROCHEMICALS LTD.
A3: 152,Sanjay Bldg. No. 6,Mittal Ind.Estate,Andheri Kurla Road,Marol,Andheri(East),MUMBAI-400 059.
A4: Tel. 28509801 / 28517451 Telefax. 28509802 E- MAIL ganpetro@vsnl.com
A5: Bhivandi W.H. Add :- Godown No. 20,Thakkar Compound,Valgaon,Anjur Rd,Bhivandi,Dist. Thane.
A6: Tel :- 02522-271056 , 09324038864, 09967898962
A7: Daman W.H.Add. :- House No. DGGP/10-B, Survey No. 747 & 748, Village Kalaria, Nani Daman,
A8: Daman - 396 210. Tel :- 0260 - 2240086, Mobile - 09377319643
A9: STOCK POINT HD, LL & PP CREDIT PRICE W.E.F. DT. 09.05.2013
C10: BHIVANDI | D10: DAMAN / SILVASSA
B11: HDPE
B12: IM M 6007L / M 5005L | C12: 97769 | D12: 97800
B13: M 5002 L | C13: 97207 | D13: 97238
B14: M5018 L / M 5025L / M5818 | C14: 95846 | D14: 96134
B15: HD BM B 6401 | C15: 96505 | D15: 96594
B16: HD BM/FILM E 5201S | C16: 97067 | D16: 97156
B17: HD BM/FILM E 5201 | C17: 98229 | D17: 98317
B18: HD T10 | C18: 96362 | D18: 97340
B19: HM B 5500 | C19: 97762 | D19: 97793
B20: HM FILM F 5600/5400 | C20: 97966 | D20: 98087
B21: MFIL/RAF R5801 | C21: 96581 | D21: 96727
B22: RAF / HD T 9 / R 6001L | C22: 95445 | D22: 96306
B23: HD T 6 / F 5001 | C23: 97451 | D23: 97685
B24: P5200 ( P.E. - 63 ) | C24: 99435 | D24: 99466
B25: PIPE P 5300 | C25: 102767 | D25: 102797
B26: PIPE P5200UV | C26: 101120 | D26: 101151
B27: PP
B28: FILM F 110 | C28: 100370 | D28: 100550
B29: HPIM M 110 | C29: 98930 | D29: 99020
B30: HPIM M 103 | C30: 99560 | D30: 99590
B31: RAFFIA R 103 | C31: 100020 | D31: 100170
B32: HPIM M108 / M106 | C32: 98410 | D32: 98440
B33: HP PP F135 / E125 | C33: 100650 | D33: 101430
B34: PP F103 | C34: 101230 | D34: 101140
B35: PP CP/RCP
B36: PP CP M 340 / M365 | C36: 104500 | D36: 104470
B37: PP CP M 312 | C37: 102780 | D37: 102870
B38: PP CP M 304 / M 325 | C38: 102720 | D38: 102810
B39: PP CP M 307 / M 315 | C39: 102090 | D39: 102180
B40: PP RCP B 200 | C40: 102200 | D40: 103040
B41: TF T 103 / T 105N | C41: 101230 | D41: 101720
B42: PP CP M 310 | C42: 105360 | D42: 105510
B43: PP RCP M212S | C43: 104620 | D43: 104470
B44: B202S | C44: 109610 | D44: 109640
B45: LLDPE
B46: FILM 71601D | C46: 98376 | D46: 98464
B47: FILM 71601W / 71602 S/W | C47: 97252 | D47: 97340
B48: ROTO 73005 T / 73204 T | C48: 100067 | D48: 100212
B49: ROTO 73005 TU / 73204 TU | C49: 101752 | D49: 101897
B50: FILM 71501 S | C50: 97252 | D50: 97340
B51: EC 72307 E | C51: 101043 | D51: 101074
B52: LLT-12 | C52: 100481 | D52: 100512
A53: The above prices are Credit Prices & are inclusive of Excise Duty @ 12.36 %.
A54: Local VAT Tax and other duties and levies applicable at prevailing rate.
A55: Transportation Charges from our Warehouse in Customers Account.
A56: Cash disc. For Ex-stock sales will be Rs. 1000/- per MT on HDPE, LLDPE, PP & PPCP
A57: Non Prime Grade Rs. 900/MT less than the Prime Grade
A58: on post-ED basis for cash customer.
A59: PRICE MAY CHANGE WITHOUT ANY PRIOR NOTICE. PRICE PREVAILING AT THE TIME OF DISPATCH WILL APPLY.
A60: REGARDS
A61: HITESH SHAH - 9820106078
A62: GIRISH SHAH - 9320949656

Sheet Sheet1
